Date,Supplier,Brief Description and Quantity,Cost Centre,A/C,Merchant Category,� Gross Amount,VAT Not Recovered,Dept
01/04/2021,Premier Inn,Temporary Accommodation,4440,64401,B & B Accomodation,271.00,,Housing
02/04/2021,Digicert,SSL - additional Housing SANs,5222,64071,ICT Software,232.33,,ICT
02/04/2021,Zoom,Meeting Software for SCDC,5223,64071,ICT Software,703.85,,ICT
02/04/2021,Prestige Flowers,Flowers,4343,61709,Materials,34.48,,Operations
03/04/2021,Flower Bar,Floral Tribute ,4145,61903,Hospitality,79.95,,Corporate Office
04/04/2021,Microsoft,Azure Licence,5286,64071,ICT Software,0.34,,ICT
04/04/2021,We Transfer,Marketing,4010,62005,"Advertising, Publicity & Marketing",105.32,,One Leisure Huntingdon
06/04/2021,Allies Computing,Postcode searches for HDC,5229,64071,ICT Software,156.00,,ICT
06/04/2021,TV Licencing,TV LICENCE - OLH UNTIL 31 MAR 2022,4021,60410,Licences,159.00,,One Leisure St Ives
06/04/2021,TV Licencing,TV LICENCE - OLSN  UNTIL 31 MAR 2022,4075,60410,Licences,159.00,,One Leisure St Ives
06/04/2021,Amazon,Prime,4130,61713,Equipment,7.99,,Countryside Services
06/04/2021,Timpsons,Equipment,4119,61713,Equipment,130.00,,Countryside Services
07/04/2021,Mail Chimp,Electronic mailing,4130,64100,Postage & Courier Services,69.21,,Corporate Office
07/04/2021,Travelodge,Temporary Accommodation,4440,64401,B & B Accomodation,200.93,,Housing
07/04/2021,Travelodge,Temporary Accommodation,4440,64401,B & B Accomodation,4.01,,Housing
07/04/2021,Premier Inn,Temporary Accommodation,4440,64401,B & B Accomodation,276.00,,Housing
07/04/2021,Zoom,Licence for Virtual Committee Meeetings,4130,64072,ICT Licence,191.90,,Corporate Office
09/04/2021,Atlassian,JIRA Subscription,5286,64071,ICT Software,242.52,,ICT
09/04/2021,Digicert,SSL - mysouthcambs,5223,64071,ICT Software,179.26,,ICT
10/04/2021,Mail Chimp,Electronic Mailing,4130,64100,Postage & Courier Services,477.00,,Corporate Office
10/04/2021,Hootsuite,Software for Customer Services,5175,62005,"Advertising, Publicity & Marketing",230.40,,Corporate Office
10/04/2021,Adobe,Publishing software license,4010,62005,"Advertising, Publicity & Marketing",41.62,,One Leisure St Ives
10/04/2021,Facebook,Facebook advertising,4010,62005,"Advertising, Publicity & Marketing",200.00,,One Leisure St Ives
10/04/2021,Miro,Research collaboration tool,4148,64071,ICT Software,75.32,,Transformation
12/04/2021,Amazon,Tape & Kettle,4075,61713,Equipment,37.64,,One Leisure Huntingdon
12/04/2021,Amazon,HDMI Extender,5224,64070,ICT Hardware,25.49,,ICT
12/04/2021,Prestige Flowers,Flowers,4343,61709,Materials,31.48,,Operations
12/04/2021,Security Industry,SIA Licence,4185,60410,Licences,190.00,,Operations
13/04/2021,J2 eFax,Fax-to-email software,5222,64071,ICT Software,19.20,,ICT
13/04/2021,1&1 Ionos,Domains-hdcventures,5286,64900,Registration Fee,27.71,,ICT
13/04/2021,1&1 Ionos,Domains-stringpins,5229,64900,Registration Fee,31.31,,ICT
13/04/2021,RLSS,Training Defibs,5219,61709,Materials,179.88,,One Leisure Huntingdon
13/04/2021,Security Industry,SIA Licence,4185,60410,Licences,190.00,,Operations
13/04/2021,Amazon,Equipment,4063,61713,Equipment,2.92,,One Leisure St Ives
13/04/2021,Amazon,Equipment,4130,61713,Equipment,69.99,,Corporate Office
13/04/2021,Amazon,Equipment,4119,61713,Equipment,41.99,,Countryside Services
14/04/2021,Travelodge,Temporary Accommodation,4440,64401,B & B Accomodation,130.96,,Housing
14/04/2021,Travelodge,Temporary Accommodation,4440,64401,B & B Accomodation,2.61,,Housing
14/04/2021,Travelodge,Temporary Accommodation,4440,64401,B & B Accomodation,134.97,,Housing
14/04/2021,Travelodge,Temporary Accommodation,4440,64401,B & B Accomodation,2.69,,Housing
14/04/2021,Premier Inn,Temporary Accommodation,4440,64401,B & B Accomodation,272.50,,Housing
14/04/2021,AutoSPF,Authorised Email Domain - 3Cs,5286,64071,ICT Software,8.98,,ICT
14/04/2021,Amazon,Equipment,4130,61713,Equipment,48.98,,Countryside Services
15/04/2021,Digicert,SSL - Housing SCDC,5223,64071,ICT Software,584.33,,ICT
15/04/2021,UKPOS,Equipment,4130,61713,Equipment,227.81,,Corporate Office
16/04/2021,Travelodge,Temporary Accommodation,4440,64401,B & B Accomodation,258.93,,Housing
16/04/2021,Travelodge,Temporary Accommodation,4440,64401,B & B Accomodation,5.17,,Housing
16/04/2021,Premier Inn,Temporary Accommodation,4440,64401,B & B Accomodation,-198.00,,Housing
16/04/2021,Tesco,Equipment,4317,62000,"Clothes, Uniform & Laundry",40.00,,Operations
16/04/2021,Amazon,Equipment,4317,62000,"Clothes, Uniform & Laundry",26.38,,Operations
16/04/2021,Shell,Fuel for tractors,4063,60902,Fuel,31.19,,One Leisure St Ives
16/04/2021,Facebook,Facebook advertising,4010,62005,"Advertising, Publicity & Marketing",52.81,,One Leisure St Ives
16/04/2021,Facebook,COVID adverts,4030,64071,ICT Software,377.44,,Transformation
18/04/2021,Adobe,Publishing software license,4010,62005,"Advertising, Publicity & Marketing",41.62,,One Leisure St Ives
19/04/2021,West End DIY,Equipment,4063,61713,Equipment,42.52,,One Leisure St Ives
19/04/2021,Performance,St.Ives Maintenance,4055,60201,Maintenance - Building,180.00,,One Leisure St Ives
19/04/2021,Amazon,Equipment,4119,61713,Equipment,319.99,,Countryside Services
20/04/2021,PayPro,FTPGetter Professional,5222,64071,ICT Software,76.05,,ICT
20/04/2021,Tamar Telecomms,0300 number for BldgCont,5222,64077,Land Line Rental,17.99,,ICT
20/04/2021,Zoom,Meeting Software for SCDC,5223,64071,ICT Software,5.86,,ICT
20/04/2021,Zoom,Meeting Software for SCDC,5223,64071,ICT Software,11.74,,ICT
20/04/2021,Digicert,Refund-SSL-mysouthcambs,5223,64071,ICT Software,-174.86,,ICT
20/04/2021,Facebook,Advertising,4143,62005,"Advertising, Publicity & Marketing",75.56,,Operations
20/04/2021,Dropbox,External File Storage,4010,62005,"Advertising, Publicity & Marketing",9.99,,One Leisure St Ives
20/04/2021,Twillo,Voice bots service,4151,64071,ICT Software,10.04,,Transformation
21/04/2021,Travelodge,Temporary Accommodation,4440,64401,B & B Accomodation,195.93,,Housing
21/04/2021,Travelodge,Temporary Accommodation,4440,64401,B & B Accomodation,3.91,,Housing
21/04/2021,Amazon,Equipment,4119,61713,Equipment,77.17,,Countryside Services
22/04/2021,Amazon,Tractor Battery Charger,4074,61713,Equipment,59.39,,One Leisure Huntingdon
22/04/2021,Zoom,Meeting Software for SCDC,5223,64071,ICT Software,4.80,,ICT
22/04/2021,Postman,Digital Team,5286,64071,ICT Software,111.72,,ICT
22/04/2021,Royal Mail,Stamps,4362,69150,Other Services,132.00,,Operations
22/04/2021,Amazon,Equipment,4119,61713,Equipment,4.19,,Countryside Services
23/04/2021,MailChimp,MailChimp Subscription,5227,64077,Land Line Rental,14.58,,ICT
23/04/2021,MailChimp,Mandrill Auto Email,5222,64077,Land Line Rental,64.14,,ICT
23/04/2021,DVLA,Replacement Certificate,5204,60907,Other Vehicle Costs,13.00,,Operations
23/04/2021,DVLA,Vehicle Excise Duty,5204,60907,Other Vehicle Costs,277.50,,Operations
23/04/2021,DVLA,Vehicle Excise Duty,5204,60907,Other Vehicle Costs,167.50,,Operations
24/04/2021,Balsamiq,Digital Team,5286,64071,ICT Software,6.70,,ICT
26/04/2021,Hootsuite,Social Media Platform Licence,4010,62005,"Advertising, Publicity & Marketing",142.80,,One Leisure St Ives
27/04/2021,Amazon,Publication,4145,62003,"Books, Publications & Resources",19.98,,Corporate Office
27/04/2021,Amazon,8x USB Wifi Adapter Antenna,5222,64070,ICT Hardware,140.91,,ICT
27/04/2021,Istock,Image Library Supply,4010,62005,"Advertising, Publicity & Marketing",84.00,,One Leisure St Ives
27/04/2021,Dropbox,External File Storage,4010,62005,"Advertising, Publicity & Marketing",9.99,,One Leisure St Ives
27/04/2021,Wilco,Equipment,4130,61713,Equipment,4.00,,Corporate Office
27/04/2021,Poundland,Equipment,4130,61713,Equipment,6.25,,Corporate Office
28/04/2021,Wilco,Elections stationery,4498,62002,Stationary,2.34,,Corporate Office
28/04/2021,Wilco,Elections stationery,4500,62002,Stationary,2.33,,Corporate Office
28/04/2021,Wilco,Elections stationery,4501,62002,Stationary,2.33,,Corporate Office
28/04/2021,Travelodge,Temporary Accommodation,4440,64401,B & B Accomodation,200.93,,Housing
28/04/2021,Travelodge,Temporary Accommodation,4440,64401,B & B Accomodation,4.01,,Housing
28/04/2021,Amazon,Equipment,4119,61713,Equipment,73.68,,Countryside Services
29/04/2021,Wilco,Elections stationery,4498,62002,Stationary,3.32,,Corporate Office
29/04/2021,Wilco,Elections stationery,4500,62002,Stationary,3.34,,Corporate Office
29/04/2021,Wilco,Elections stationery,4501,62002,Stationary,3.34,,Corporate Office
29/04/2021,Security Industry,SIA Licence,4185,60410,Licences,190.00,,Operations
29/04/2021,Amazon,Equipment,4119,61713,Equipment,17.56,,Countryside Services
30/04/2021,1&1 Ionos,Domain-councillor.online,5286,64900,Registration Fee,30.12,,ICT
30/04/2021,Mailchimp,Externa Mail Management,4010,62005,"Advertising, Publicity & Marketing",54.69,,One Leisure St Ives
30/04/2021,K-Bins,Equipment,4130,61713,Equipment,150.16,,Corporate Office
01/05/2021,Wilco,Elections stationery,4498,62002,Stationary,1.00,,Corporate Office
01/05/2021,Wilco,Elections stationery,4500,62002,Stationary,1.00,,Corporate Office
01/05/2021,Wilco,Elections stationery,4501,62002,Stationary,1.00,,Corporate Office
01/05/2021,Google,Map searches for HDC,5229,64071,ICT Software,207.42,,ICT
02/05/2021,Swift Industrial Direct,Equipment,4317,62000,"Clothes, Uniform & Laundry",221.69,,Operations
03/05/2021,Google,City Google Map Searches,5222,64071,ICT Software,183.78,,ICT
03/05/2021,Facebook,Advertising,4097,62005,"Advertising, Publicity & Marketing",16.00,,Active Leisure
04/05/2021,Amazon,Work Boots,4317,62000,"Clothes, Uniform & Laundry",156.81,,Operations
04/05/2021,Travelodge,Temporary Accommodation,4440,64401,B & B Accomodation,227.93,,Housing
04/05/2021,Travelodge,Temporary Accommodation,4440,64401,B & B Accomodation,4.55,,Housing
05/05/2021,Amazon,Aftershokz Headphones,5222,64070,ICT Hardware,69.00,,ICT
05/05/2021,Amazon,2x iPhone Cases,5224,64070,ICT Hardware,27.98,,ICT
05/05/2021,Amazon,iPhone Cases,5224,64070,ICT Hardware,4.99,,ICT
05/05/2021,Microsoft,Azure,5286,64071,ICT Software,0.37,,ICT
06/05/2021,Amazon,Ergonomic Mouse,5223,64070,ICT Hardware,102.98,,ICT
06/05/2021,Domino's Pizza,Food for elections,4498,61903,Hospitality,26.68,,Corporate Office
06/05/2021,Domino's Pizza,Food for elections,4500,61903,Hospitality,26.66,,Corporate Office
06/05/2021,Domino's Pizza,Food for elections,4501,61903,Hospitality,26.66,,Corporate Office
06/05/2021,Amazon,Prime,4130,61713,Equipment,7.99,,Countryside Services
06/05/2021,bill.org,Equipment,4119,61713,Equipment,168.00,,Countryside Services
07/05/2021,Mailchimp,Bulk mailing,4130,64100,Postage & Courier Services,68.94,,Corporate Office
07/05/2021,Planning.co.uk,St.Ives Maintenance,4055,60201,Maintenance - Building,490.00,,One Leisure Huntingdon
07/05/2021,Zoom,Licence for Virtual Committee Meeetings,4130,64072,ICT Licence,191.90,,Corporate Office
07/05/2021,Amazon,Equipment,4119,61713,Equipment,85.96,,Countryside Services
08/05/2021,Amazon,Equipment,4119,61713,Equipment,37.80,,Countryside Services
09/05/2021,Atlassian,JIRA Subscription,5286,64071,ICT Software,294.83,,ICT
10/05/2021,Tamar Telecomms,0300 number for BldgCont,5222,64077,Land Line Rental,17.99,,ICT
10/05/2021,Mailchimp,Bulk mailing,4130,64100,Postage & Courier Services,470.39,,Corporate Office
10/05/2021,Marks & Spencer,Hospitality,4145,61903,Hospitality,58.50,,Corporate Office
10/05/2021,Adobe,Publishing software license,4010,62005,"Advertising, Publicity & Marketing",41.62,,One Leisure St Ives
10/05/2021,Zoom,Zoom licences for 1 month for SCDC recoverable,5223,64071,ICT Software,767.83,,ICT
11/05/2021,Miro,Research collaboration tool,4148,64071,ICT Software,73.90,,Transformation
11/05/2021,Twillo,Voice bots service,4151,64071,ICT Software,10.36,,Transformation
11/05/2021,Amazon,St.Ives Maintenance,4055,60201,Maintenance - Building,39.95,,One Leisure Huntingdon
11/05/2021,Amazon,Equipment,4119,61713,Equipment,9.99,,Countryside Services
11/05/2021,Amazon,Equipment,4119,61713,Equipment,-17.56,,Countryside Services
12/05/2021,Travelodge,Temporary Accommodation,4440,64401,B & B Accomodation,276.93,,Housing
12/05/2021,Travelodge,Temporary Accommodation,4440,64401,B & B Accomodation,5.53,,Housing
12/05/2021,Amazon,Equipment,4119,61713,Equipment,2.16,,Countryside Services
13/05/2021,Value Products Ltd,Safety signs,4187,61713,Equipment,24.84,,Operations
13/05/2021,J2 eFax,Fax-to-email software,5222,64071,ICT Software,19.20,,ICT
13/05/2021,1&1 Ionos,Domain-mycouncillors.uk,5286,64900,Registration Fee,11.99,,ICT
13/05/2021,1&1 Ionos,Domain-camcit.co,5227,64900,Registration Fee,41.99,,ICT
13/05/2021,1&1 Ionos,Domain-greatercambridgewaste.org.uk,5286,64900,Registration Fee,11.99,,ICT
13/05/2021,1&1 Ionos,Domain-greatercambridgewaste.org,5286,64900,Registration Fee,19.31,,ICT
13/05/2021,Ink Imaginarium,Traning Materials ,5220,60115,Staff Training & Development,5.00,,Human Resources
14/05/2021,AutoSPF,Email,5286,64071,ICT Software,8.80,,ICT
14/05/2021,Ink Imaginarium,Traning Materials ,5220,60115,Staff Training & Development,15.00,,Human Resources
16/05/2021,Facebook,Facebook advertising,4010,62005,"Advertising, Publicity & Marketing",110.24,,One Leisure St Ives
17/05/2021,Facebook,Think Local Campaign,4143,62005,"Advertising, Publicity & Marketing",280.79,,Operations
17/05/2021,Amazon,radar key,4063,61713,Equipment,2.84,,One Leisure St Ives
18/05/2021,LGA,Annual Conference,4145,64300,Conference Expenses,480.00,,Corporate Office
18/05/2021,LGA,Conference refund,4145,64300,Conference Expenses,-480.00,,Corporate Office
18/05/2021,Amazon,Equipment,4072,61300,Cleaning Materials,85.90,,One Leisure Huntingdon
18/05/2021,Adobe,Publishing software license,4010,62005,"Advertising, Publicity & Marketing",41.62,,One Leisure St Ives
19/05/2021,Just Eat,Staff rewards,4143,60124,Team Rewards,80.00,,Operations
19/05/2021,Amazon,50x USB-C (F) to USB-A (M) Adapters,5229,64070,ICT Hardware,274.50,,ICT
19/05/2021,Amazon,50x USB-C (F) to USB-A (M) Adapters,5229,64070,ICT Hardware,274.50,,ICT
19/05/2021,Uptime Robot,Website Monitoring Software,5286,64071,ICT Software,61.22,,ICT
19/05/2021,Travelodge,Temporary Accommodation,4440,64401,B & B Accomodation,325.93,,Housing
19/05/2021,Travelodge,Temporary Accommodation,4440,64401,B & B Accomodation,6.51,,Housing
19/05/2021,Dropbox,External File Storage,4010,62005,"Advertising, Publicity & Marketing",9.99,,One Leisure St Ives
19/05/2021,Amazon,Equipment,4119,61713,Equipment,9.00,,Countryside Services
20/05/2021,Screwfix,H&S Poster,4187,61709,Materials,26.99,,Operations
20/05/2021,Amazon,litter picker and bag holder,4063,61713,Equipment,59.40,,One Leisure St Ives
20/05/2021,Paypal: LAG,LAG Housing Possession Duty Publication,5278,62003,"Books, Publications & Resources",28.50,,Housing
20/05/2021,Performance,St.Ives Maintenance,4055,60201,Maintenance - Building,386.15,,One Leisure Huntingdon
21/05/2021,Thing me bobs,Hosepipe,4063,61713,Equipment,12.99,,One Leisure St Ives
21/05/2021,PayPro,FTP Getter Professional,5286,64071,ICT Software,74.48,,ICT
21/05/2021,DVLA,Vehicle Excise Duty,5204,60905,Vehicle Licencing,167.50,,Operations
21/05/2021,DVLA,Vehicle Excise Duty,5204,60905,Vehicle Licencing,167.50,,Operations
21/05/2021,DVLA,Vehicle Excise Duty,5204,60905,Vehicle Licencing,167.50,,Operations
21/05/2021,DVLA,Vehicle Excise Duty,5204,60905,Vehicle Licencing,167.50,,Operations
21/05/2021,DVLA,Vehicle Excise Duty,5204,60905,Vehicle Licencing,302.50,,Operations
21/05/2021,Amazon,St.Ives Maintenance,4055,60201,Maintenance - Building,9.90,,One Leisure Huntingdon
22/05/2021,Postman,Digital Team,5286,64071,ICT Software,123.45,,ICT
23/05/2021,MailChimp,MailChimp Subscription,5227,64077,Land Line Rental,14.25,,ICT
23/05/2021,MailChimp,Mandrill Auto Email,5222,64077,Land Line Rental,62.72,,ICT
23/05/2021,Amazon,Equipment,4119,61713,Equipment,9.99,,Countryside Services
24/05/2021,Amazon,3x Samsung Tablet Cases,5223,64070,ICT Hardware,77.01,,ICT
24/05/2021,Balsamiq,Digital Team,5286,64071,ICT Software,6.57,,ICT
24/05/2021,Companies House,Companies House,4130,63200,Legal Fees,13.00,,Corporate Office
24/05/2021,Companies House,Companies House,4130,63200,Legal Fees,13.00,,Corporate Office
25/05/2021,Amazon,Work Boots return,4317,62000,"Clothes, Uniform & Laundry",-39.99,,Operations
25/05/2021,MTF Enterprises,Sports Equipment,4107,61713,Equipment,399.80,,Active Leisure
25/05/2021,Amazon,Equipment,4119,61713,Equipment,59.94,,Countryside Services
26/05/2021,Travelodge,Temporary Accommodation,4440,64401,B & B Accomodation,351.93,,Housing
26/05/2021,Travelodge,Temporary Accommodation,4440,64401,B & B Accomodation,7.03,,Housing
26/05/2021,Pickle-Ball,Sports Equipment,4107,61713,Equipment,216.00,,Active Leisure
26/05/2021,Hootsuite,Social Media Platform Licence,4010,62005,"Advertising, Publicity & Marketing",142.80,,One Leisure St Ives
27/05/2021,Istock,Image Library Supply,4010,62005,"Advertising, Publicity & Marketing",84.00,,One Leisure St Ives
27/05/2021,Dropbox,External File Storage,4010,62005,"Advertising, Publicity & Marketing",9.99,,One Leisure St Ives
27/05/2021,Amazon,Equipment,4119,61713,Equipment,2.20,,Countryside Services
27/05/2021,Amazon,Equipment,4119,61713,Equipment,-2.16,,Countryside Services
31/05/2021,GoAudits,Audit app,4362,61707,Car Park Machines,263.04,,Operations
31/05/2021,Facebook,Advertising,4143,62005,"Advertising, Publicity & Marketing",400.00,,Operations
31/05/2021,Google,Map searches for HDC,5229,64071,ICT Software,183.14,,ICT
31/05/2021,MailChimp,Externa Mail Management,4010,62005,"Advertising, Publicity & Marketing",53.89,,One Leisure St Ives
01/06/2021,Zoom,Zoom licences for 1 month for SCDC recoverable,5223,64071,ICT Software,735.83,,ICT
02/06/2021,Google,City Google Map Searches,5222,64071,ICT Software,336.19,,ICT
02/06/2021,Travelodge,Temporary Accommodation,4440,64401,B & B Accomodation,262.93,,Housing
02/06/2021,Travelodge,Temporary Accommodation,4440,64401,B & B Accomodation,5.25,,Housing
02/06/2021,CPL Training,Training,4119,60115,Staff Training & Development,150.00,,Countryside Services
03/06/2021,Enterprise Parking Solutions,PCN Parking Fine (Dolphin Car Park),5204,63850,Penalties/Fines,100.00,,Operations
04/06/2021,AMAZON,ADAPTORS FOR OLD HEADSETS,4055,61709,Materials,17.98,,One Leisure St Ives
04/06/2021,Microsoft,Azure,5286,64071,ICT Software,0.36,,ICT
04/06/2021,Tesco,Petrol,4074,60902,Fuel,14.83,,One Leisure Huntingdon
06/06/2021,Amazon,Materials - batteries,4075,61709,Materials,5.99,,One Leisure Huntingdon
06/06/2021,Amazon,Prime,4130,61713,Equipment,7.99,,Countryside Services
07/06/2021,Mailchimp,Bulk emails,4130,64100,Postage & Courier Services,67.83,,Corporate Office
07/06/2021,Zoom,Licence for Virtual Committee Meeetings,4130,64072,ICT Licence,191.90,,Corporate Office
08/06/2021,Amazon,Screwdriver,4119,61713,Equipment,12.99,,Countryside Services
08/06/2021,Miro,Research collaboration tool,4148,64071,ICT Software,73.17,,Transformation
09/06/2021,Travelodge,Temporary Accommodation,4440,64401,B & B Accomodation,301.93,,Housing
09/06/2021,Travelodge,Temporary Accommodation,4440,64401,B & B Accomodation,6.03,,Housing
09/06/2021,Amazon,Aruba Ceiling Mounts,5229,64070,ICT Hardware,22.91,,ICT
09/06/2021,Atlassian,JIRA Subscription,5286,64071,ICT Software,355.74,,ICT
09/06/2021,Digicert,SSL-democracy.cambridge,5227,64071,ICT Software,174.01,,ICT
09/06/2021,Amazon,WD40,4075,60201,Maintenance - Building,19.02,,One Leisure Huntingdon
09/06/2021,Amazon,Break Glass replacements,4075,60201,Maintenance - Building,28.44,,One Leisure Huntingdon
09/06/2021,Amazon,Equipment,4130,61713,Equipment,56.72,,Countryside Services
10/06/2021,Gen Register Office ,Birth Cert - *Redacted*,4440,64403,Homeless Prevention Payments,38.00,,Housing
10/06/2021,DVLA,Vehicle Excise Duty,5204,60905,Vehicle Licencing,277.50,,Operations
10/06/2021,DVLA,Vehicle Excise Duty,5204,60905,Vehicle Licencing,277.50,,Operations
10/06/2021,DVLA,Vehicle Excise Duty,5204,60905,Vehicle Licencing,277.50,,Operations
10/06/2021,DVLA,Vehicle Excise Duty,5204,60905,Vehicle Licencing,277.50,,Operations
10/06/2021,Mailchimp,Bulk emails,4130,64100,Postage & Courier Services,462.78,,Corporate Office
10/06/2021,Adobe,Marketing,4010,62005,"Advertising, Publicity & Marketing",41.62,,One Leisure Huntingdon
10/06/2021,HDC,Temporary Events Licence,5220,60115,Staff Training & Development,21.00,,Countryside Services
10/06/2021,HDC,Temporary Events Licence,5220,60115,Staff Training & Development,21.00,,Countryside Services
10/06/2021,HDC,Temporary Events Licence,5220,60115,Staff Training & Development,21.00,,Countryside Services
10/06/2021,HDC,Temporary Events Licence,5220,60115,Staff Training & Development,21.00,,Countryside Services
10/06/2021,Tamar Telecomms,0300 number for BldgCont,5222,64077,Land Line Rental,17.99,,ICT
10/06/2021,Amazon,Materials - batteries,4075,61709,Materials,17.42,,One Leisure Huntingdon
10/06/2021,Twillo,Voice bots service,4151,64071,ICT Software,10.01,,Transformation
11/06/2021,Amazon,Choclate Coins,4118,61900,Catering Supplies,24.94,,Countryside Services
12/06/2021,ebay,HDMI cables,4010,62005,"Advertising, Publicity & Marketing",5.98,,One Leisure Huntingdon
13/06/2021,Facebook,ILS Healthy You advertising,4097,62005,"Advertising, Publicity & Marketing",8.99,,Active Leisure
13/06/2021,J2 eFax,Fax-to-email software,5222,64071,ICT Software,19.20,,ICT
13/06/2021,1&1 Ionos,Domain-HDC Ventures,5286,64900,Registration Fee,11.99,,ICT
14/06/2021,MHFA England,Course materials,5210,60115,Staff Training & Development,425.20,,Human Resources
14/06/2021,MHFA England,MHFA Badges,5210,60115,Staff Training & Development,90.00,,Human Resources
14/06/2021,AMAZON,2022 A4 DIARY ,4055,61709,Materials,9.98,,One Leisure St Ives
14/06/2021,AutoSPF,Email,5286,64071,ICT Software,8.78,,ICT
16/06/2021,Travelodge,Temporary Accommodation,4440,64401,B & B Accomodation,280.93,,Housing
16/06/2021,Travelodge,Temporary Accommodation,4440,64401,B & B Accomodation,5.61,,Housing
16/06/2021,Group Cards,Stationery,4145,62002,Stationary,5.00,,Corporate Office
16/06/2021,Slepe Hall,Conference,4145,64300,Conference Expenses,50.00,,Corporate Office
16/06/2021,Amazon,Sum-Up Card Reader,4109,61713,Equipment,28.99,,Active Leisure
16/06/2021,Amazon,St.Ives Maintenance,4055,60201,Maintenance - Building,120.89,,One Leisure Huntingdon
16/06/2021,Facebook,Marketing,4010,62005,"Advertising, Publicity & Marketing",125.00,,One Leisure Huntingdon
16/06/2021,AMAZON,STORAGE HEAVY DUTY RACKING,4055,61709,Materials,29.95,,One Leisure St Ives
16/06/2021,Money Claim Online,Application Fee for Legal proceedings to recover debt,9167,12052,Sales Control,115.00,,Benefits
16/06/2021,Money Claim Online,Application Fee for Legal proceedings to recover debt,9167,12052,Sales Control,70.00,,Benefits
17/06/2021,GL Commercials,Deposit for Vehicle,100043,60906,Purchase of Vehicle,500.00,,Operations
17/06/2021,Morrisons,Outdoor Bar,4057,51209,Sale of food & Drink,3.27,,One Leisure Huntingdon
17/06/2021,Facebook,Advertising,4143,62005,"Advertising, Publicity & Marketing",164.42,,Operations
18/06/2021,Adobe,Marketing,4010,62005,"Advertising, Publicity & Marketing",41.62,,One Leisure Huntingdon
20/06/2021,Canva,Subscription,4143,62005,"Advertising, Publicity & Marketing",107.88,,Operations
21/06/2021,tesco,Outdoor Bar,4057,51209,Sale of food & Drink,5.87,,One Leisure Huntingdon
21/06/2021,LGiU,Member Training,5220,60123,Member Training,108.00,,Corporate Office
22/06/2021,Merit Skills,NRSWA Training Markets,5370,60115,Staff Training & Development,"1,236.00",,Operations
22/06/2021,spar,Outdoor Bar,4057,51209,Sale of food & Drink,1.00,,One Leisure Huntingdon
22/06/2021,Postman,Digital Team,5286,64071,ICT Software,122.57,,ICT
22/06/2021,APC,UPS Battery,5224,64070,ICT Hardware,95.99,,ICT
23/06/2021,Canrehab,Cancer rehab course ,5210,60115,Staff Training & Development,714.00,,Human Resources
23/06/2021,Amazon,Popcorn,4118,61900,Catering Supplies,24.99,,Countryside Services
23/06/2021,Amazon,Draytek Vigor Switch,5223,64070,ICT Hardware,221.99,,ICT
23/06/2021,MailChimp,MailChimp Subscription,5227,64077,Land Line Rental,14.54,,ICT
23/06/2021,MailChimp,Mandrill Auto Email,5222,64077,Land Line Rental,63.97,,ICT
23/06/2021,Amazon,Gym Equipment,4072,61713,Equipment,32.97,,One Leisure Huntingdon
24/06/2021,Balsamiq,Digital Team,5286,64071,ICT Software,6.67,,ICT
26/06/2021,Hootsuite,Social Media Platform Licence,4010,62005,"Advertising, Publicity & Marketing",142.80,,One Leisure St Ives
27/06/2021,Dropbox,External File Storage,4010,62005,"Advertising, Publicity & Marketing",9.99,,One Leisure St Ives
28/06/2021,Knowledge Academy,Knowledge Academy,5210,60115,Staff Training & Development,615.31,,Human Resources
28/06/2021,Newitts,Sports Equipment,4107,61713,Equipment,155.98,,Active Leisure
28/06/2021,red Gorilla,OLSI,4055,60201,Maintenance - Building,49.99,,One Leisure Huntingdon
28/06/2021,Istock,Image Library Supply,4010,62005,"Advertising, Publicity & Marketing",84.00,,One Leisure St Ives
29/06/2021,RLSS UK SHOP,PHILIPS HEARTSTART FRX PADS OLSN,4075,61709,Materials,53.16,,One Leisure St Ives
29/06/2021,Jam,Treesize Software,5286,64071,ICT Software,42.50,,ICT
29/06/2021,Shell,Fuel for tractors,4063,60902,Fuel,25.75,,One Leisure St Ives
30/06/2021,Tanita,OLH Gym,4018,60410,Licences,338.14,,One Leisure Huntingdon
30/06/2021,Amazon,Phone Case,5223,64070,ICT Hardware,18.98,,ICT
30/06/2021,Google,Map searches for HDC,5229,64071,ICT Software,174.71,,ICT
30/06/2021,Mailchimp,Externa Mail Management,4010,62005,"Advertising, Publicity & Marketing",9.18,,One Leisure St Ives
30/06/2021,ebay,Equipment,5276,61713,Equipment,6.89,,Facilities Management
30/06/2021,ebay,Equipment,5276,61713,Equipment,11.99,,Facilities Management
01/07/2021,Amazon,St.Ives Maintenance,4055,60201,Maintenance - Building,27.49,,One Leisure Huntingdon
01/07/2021,Amazon,St.Ives Maintenance,4055,60201,Maintenance - Building,28.19,,One Leisure Huntingdon
01/07/2021,Google,City Google Map Searches,5222,64071,ICT Software,312.82,,ICT
01/07/2021,Trade Gear Ltd,Line Marker Paint,4362,60273,Site Alterations,89.99,,Operations
01/07/2021,Royal Mail,Stamps,4362,69150,Other Services,132.00,,Operations
02/07/2021,Post Office,Expenses,5262,63900,Misc Expences,11.42,,Finance
02/07/2021,Amazon,Equipment,5276,61713,Equipment,19.09,,Facilities Management
02/07/2021,screwfix,Equipment,4063,61713,Equipment,1.46,,One Leisure
02/07/2021,screwfix,Equipment,4063,61713,Equipment,41.65,,One Leisure
02/07/2021,Zoom,SCDC Conf Calling,5223,64071,ICT Software,703.85,,ICT
04/07/2021,amazon,Gym Equipment OLSN,4072,61713,Equipment,47.00,,One Leisure
05/07/2021,Slepe Hall Hotel,Hospitality,4145,61903,Hospitality,40.20,,Corporate Office
05/07/2021,screwfix,OLSIO Maintenace,4063,60201,Maintenance - Building,14.57,,One Leisure
05/07/2021,Microsoft,Azure,5286,64071,ICT Software,0.37,,ICT
05/07/2021,Post Office,Equipment,4055,61709,Materials,15.84,,One Leisure
06/07/2021,DVLA,Vehicle Excise Duty,5204,60905,Vehicle Licencing,277.50,,Operations
06/07/2021,DVLA,Vehicle Excise Duty,5204,60905,Vehicle Licencing,277.50,,Operations
06/07/2021,DVLA,Plating Certificate VTG59,5204,60920,Vehicle Inspection,13.00,,Operations
06/07/2021,mirafit,OLR Equipment,4030,61713,Equipment,319.65,,One Leisure
06/07/2021,Amazon,Prime,4130,61713,Equipment,7.99,,Countryside Services
06/07/2021,Zoom,SCDC Conf Calling,5223,64071,ICT Software,13.41,,ICT
07/07/2021,DVLA,Vehicle Excise Duty,5204,60905,Vehicle Licencing,302.50,,Operations
07/07/2021,DVLA,Vehicle Excise Duty,5204,60905,Vehicle Licencing,302.50,,Operations
07/07/2021,DVLA,Vehicle Excise Duty,5204,60905,Vehicle Licencing,302.50,,Operations
07/07/2021,DVLA,Vehicle Excise Duty,5204,60905,Vehicle Licencing,302.50,,Operations
07/07/2021,DVLA,Vehicle Excise Duty,5204,60905,Vehicle Licencing,302.50,,Operations
07/07/2021,Mailchimp,Bulk emails,4130,64100,Postage & Courier Services,69.35,,Corporate Office
07/07/2021,Zoom,Licence for Virtual Committee Meeetings,4130,64072,ICT Licence,191.90,,Corporate Office
07/07/2021,Digicert,scdc.orchardweb SSL,5223,64071,ICT Software,348.66,,ICT
07/07/2021,Amazon,Equipment,4129,61706,Playground Equipment,18.36,,Operations
07/07/2021,screwfix,Work Boots,4317,62000,"Clothes, Uniform & Laundry",19.99,,Operations
07/07/2021,screwfix,Work Boots,4317,62000,"Clothes, Uniform & Laundry",58.46,,Operations
07/07/2021,eBay,Equipment,5370,60299,Signs,122.05,,Operations
07/07/2021,eBay,Equipment,5370,60299,Signs,59.90,,Operations
07/07/2021,eBay,Equipment,5370,60299,Signs,109.80,,Operations
07/07/2021,eBay,Equipment,5370,60299,Signs,76.79,,Operations
08/07/2021,Physical,Weights,4107,61713,Equipment,243.00,,Active Leisure
08/07/2021,Twillio,Voice bots service,4151,64071,ICT Software,10.06,,Transformation
09/07/2021,Amazon,MHFA Kickstart Book,5210,60115,Staff Training & Development,5.64,,Human Resources
09/07/2021,World of books,MHFA Kickstart Book,5210,60115,Staff Training & Development,57.09,,Human Resources
09/07/2021,Atlassian,JIRA Subscription,5286,64071,ICT Software,437.73,,ICT
10/07/2021,Mailchimp,Bulk emails,4130,64100,Postage & Courier Services,475.18,,Corporate Office
10/07/2021,adobe,Marketing,4010,62005,"Advertising, Publicity & Marketing",41.62,,One Leisure
10/07/2021,Miro,Research collaboration tool,4148,64071,ICT Software,74.85,,Transformation
12/07/2021,amazon,OLSN Maintnance,4075,60201,Maintenance - Building,12.79,,One Leisure
12/07/2021,amazon,OLSN Maintnance,4075,60201,Maintenance - Building,19.06,,One Leisure
12/07/2021,Tamar Telecoms,0300 number for BldgCont,5222,64077,Land Line Rental,17.99,,ICT
12/07/2021,Marks & Spencer,"Refreshments and Buffet tea - Cabinet Away Day, 9th July 2021",4145,61903,Hospitality,26.24,,Corporate Office
12/07/2021,Sainsbury's,"Refreshments and Buffet tea - Cabinet Away Day, 9th July 2021",4145,61903,Hospitality,9.70,,Corporate Office
12/07/2021,amazon,Equipment,4129,61706,Playground Equipment,7.99,,Operations
13/07/2021,J2 eFax,Fax-to-email software,5222,64071,ICT Software,19.20,,ICT
14/07/2021,Amazon,iPhone SE Case,5224,64070,ICT Hardware,8.39,,ICT
14/07/2021,Amazon,Samsung Tablet Case,5224,64070,ICT Hardware,19.99,,ICT
14/07/2021,Amazon,iPad Case,5224,64070,ICT Hardware,18.99,,ICT
14/07/2021,Amazon,Jira Books for 3CICT,5286,60115,Staff Training & Development,96.13,,ICT
14/07/2021,AutoSPF,Email,5286,64071,ICT Software,8.96,,ICT
15/07/2021,Digicert,hdc wildcard SSL,5229,64071,ICT Software,589.82,,ICT
15/07/2021,Tesco,Equipment,4055,61709,Materials,19.50,,One Leisure
16/07/2021,Shelter,Housing course ,5210,60115,Staff Training & Development,168.00,,Human Resources
16/07/2021,facebook,Marketing,4010,62005,"Advertising, Publicity & Marketing",49.93,,One Leisure
16/07/2021,British Computer Society,BCS Subs for *Redacted*,5286,64800,Membership & Subscriptions,92.00,,ICT
16/07/2021,amazon,Equipment,4129,61706,Playground Equipment,27.34,,Operations
16/07/2021,Facebook,Trail Tale and Click it Local ads,4170,62005,"Advertising, Publicity & Marketing",225.17,,Operations
17/07/2021,Amazon,Equipment,4055,61709,Materials,169.80,,One Leisure
18/07/2021,amazon,OLSN Maintenance,4075,60201,Maintenance - Building,8.93,,One Leisure
18/07/2021,adobe,Marketing,4010,62005,"Advertising, Publicity & Marketing",41.62,,One Leisure
20/07/2021,Mind Body Spirit,MHFA team upskill,5210,60115,Staff Training & Development,28.50,,Human Resources
20/07/2021,Mind Body Spirit,MHFA team upskill,5210,60115,Staff Training & Development,28.50,,Human Resources
20/07/2021,Mind Body Spirit,MHFA team upskill,5210,60115,Staff Training & Development,24.99,,Human Resources
20/07/2021,Unawards,Staff comms course,5210,60115,Staff Training & Development,60.00,,Human Resources
20/07/2021,EB Events,2.5 Hr webinar,5210,60115,Staff Training & Development,59.42,,Human Resources
20/07/2021,Amazon,Equipment,4118,61713,Equipment,63.11,,Countryside Services
20/07/2021,Lenovo,Equipment,4129,61706,Playground Equipment,19.45,,Operations
21/07/2021,Mind Body Spirit,MHFA team upskill,5210,60115,Staff Training & Development,33.50,,Human Resources
22/07/2021,Boots Vouchers,Flu Jab,5220,60111,Occupational Health,"2,750.00",,Finance
22/07/2021,defibstore,OLSIO Maintenace,4055,61713,Equipment,285.60,,One Leisure
22/07/2021,Digicert,3css wildcard SSL,5286,64071,ICT Software,597.82,,ICT
22/07/2021,Postman,Digital Team,5286,64071,ICT Software,124.09,,ICT
23/07/2021,Digicert,Expenses,5262,63900,Misc Expences,"2,095.52",,Finance
23/07/2021,Digicert,hdc  SSL,5229,64071,ICT Software,180.31,,ICT
23/07/2021,MailChimp,MailChimp Subscription,5227,64071,ICT Software,14.72,,ICT
23/07/2021,MailChimp,Mandrill Auto Email,5222,64071,ICT Software,64.76,,ICT
23/07/2021,Just Eat,Staff Rewards,4143,60124,Team Rewards,20.00,,Operations
24/07/2021,Balsamiq,Digital Team,5286,64071,ICT Software,6.75,,ICT
26/07/2021,Cambridge City,Expenses,5262,63900,Misc Expences,"1,458.00",,Finance
26/07/2021,Cambridge City,Expenses,5262,63900,Misc Expences,"2,278.00",,Finance
26/07/2021,Microsoft,Annual MS Exchange Subscription,5229,64900,Registration Fee,"2,196.00",,ICT
26/07/2021,Origym,L3 ex referral,5210,60115,Staff Training & Development,599.00,,Human Resources
26/07/2021,Hootsuite,Social Media Platform Licence,4010,62005,"Advertising, Publicity & Marketing",142.80,,One Leisure
26/07/2021,Facebook,Advertising,4097,62005,"Advertising, Publicity & Marketing",6.01,,Active Leisure
26/07/2021,amazon,OLSN Maintnance,4075,60201,Maintenance - Building,19.06,,One Leisure
26/07/2021,Bookers,Outdoor Bar,4057,61905,Bar Provisions,51.72,,One Leisure
26/07/2021,Bookers,Outdoor Confectionary,4057,61907,Vending Materials,26.77,,One Leisure
26/07/2021,Bookers,Outdoor catering,4057,61900,Catering Supplies,15.09,,One Leisure
26/07/2021,Bookers,Outdoor catering cleaning,4057,61300,Cleaning Materials,5.39,,One Leisure
26/07/2021,Bookers,Outdoor Materials catering,4057,61709,Materials,83.98,,One Leisure
26/07/2021,Bookers,Burgess Bar,4049,61905,Bar Provisions,"1,270.62",,One Leisure
26/07/2021,Bookers,Burgess confectionary,4049,61906,Confectionary,16.63,,One Leisure
26/07/2021,Bookers,Burgess catering supplies,4049,61900,Catering Supplies,78.55,,One Leisure
26/07/2021,Bookers,Burgess Materials,4049,61709,Materials,99.78,,One Leisure
26/07/2021,Janitorial Supplies,Equipment,4129,61706,Playground Equipment,51.45,,Operations
27/07/2021,DVLA,Vehicle Excise Duty,5204,60905,Vehicle Licencing,277.50,,Operations
27/07/2021,DVLA,Vehicle Excise Duty,5204,60905,Vehicle Licencing,277.50,,Operations
27/07/2021,DVLA,Vehicle Excise Duty,5204,60905,Vehicle Licencing,302.50,,Operations
27/07/2021,DVLA,Vehicle Excise Duty,5204,60905,Vehicle Licencing,302.50,,Operations
27/07/2021,DVLA,Vehicle Excise Duty,5204,60905,Vehicle Licencing,277.50,,Operations
27/07/2021,DVLA,Vehicle Excise Duty,5204,60905,Vehicle Licencing,277.50,,Operations
27/07/2021,DVLA,Vehicle Excise Duty,5204,60905,Vehicle Licencing,302.50,,Operations
27/07/2021,DVLA,Vehicle Excise Duty,5204,60905,Vehicle Licencing,277.50,,Operations
27/07/2021,DVLA,Vehicle Excise Duty,5204,60905,Vehicle Licencing,277.50,,Operations
27/07/2021,Wizz Air Hungary,Homeless Prevention Payment - Flight back Home for *Redacted*,4440,64403,Homeless Prevention Payments,82.49,,Housing
27/07/2021,Dropbox,External File Storage,4010,62005,"Advertising, Publicity & Marketing",9.99,,One Leisure
27/07/2021,Digicert,sts.councilanywhere SSL,5286,64071,ICT Software,178.99,,ICT
27/07/2021,Digicert,SSL - huntingdonshire.gov.uk,5229,64071,ICT Software,241.25,,ICT
28/07/2021,screwfix,Equipment,5276,61713,Equipment,365.40,,Facilities Management
28/07/2021,iStock,Image Library Supply,4010,62005,"Advertising, Publicity & Marketing",84.00,,One Leisure
28/07/2021,Amazon,iPad Case,5222,64070,ICT Hardware,18.99,,ICT
29/07/2021,Provisio Muenster 200,SIteKiosk Licence for SCDC,5223,64071,ICT Software,175.48,,Operations
29/07/2021,Amazon,Equipment,4118,61713,Equipment,17.65,,Countryside Services
29/07/2021,Lenovo,Equipment,4129,61706,Playground Equipment,-19.45,,Operations
30/07/2021,Provisio,SiteKiosk for SCDC ,5223,64071,ICT Software,175.54,,ICT
30/07/2021,Amazon,Equipment,4129,61706,Playground Equipment,51.97,,Operations
31/07/2021,MailChimp,Externa Mail Management,4010,62005,"Advertising, Publicity & Marketing",9.14,,One Leisure
31/07/2021,Twillio,Voice bots service,4151,64071,ICT Software,10.01,,Transformation
01/08/2021,Amazon,Equipment,4118,61713,Equipment,3.89,,Countryside Services
01/08/2021,Zoom,SCDC Conf Calling,5223,64071,ICT Software,735.83,,ICT
03/08/2021,Boots Vouchers,Flu Jab,5220,60111,Occupational Health,550.00,,Finance
03/08/2021,Amazon,Equipment,5224,64070,ICT Hardware,23.98,,ICT
03/08/2021,Digicert,SSL - huntingdonshire.gov.uk,5229,64071,ICT Software,295.82,,ICT
03/08/2021,Eflorist,Flowers for resident,4346,61709,Materials,22.98,,Operations
03/08/2021,Just Eat,Staff Rewards,4143,60124,Team Rewards,100.00,,Operations
04/08/2021,Loungers,Leaving lunch,5220,60124,Team Rewards,29.85,,Human Resources
04/08/2021,Prenetics Emea LTD,*Redacted* PCR Test for flight home,4440,64403,Homeless Prevention Payments,99.00,,Housing
04/08/2021,Halfords On Line,"Air Mattress & Pump for *Redacted*, Grant",4440,64403,Homeless Prevention Payments,17.00,,Housing
04/08/2021,Amazon,OLSN - Equpment,4072,61713,Equipment,250.00,,One Leisure
04/08/2021,My Commerce,Equipment,5224,64070,ICT Hardware,26.44,,ICT
04/08/2021,E-bay - Street Solutions UK,Safety Signs,5370,60299,Signs,69.98,,Operations
05/08/2021,Microsoft,Azure,5286,64071,ICT Software,14.41,,ICT
05/08/2021,Google,Map searches for HDC,5229,64071,ICT Software,209.39,,ICT
06/08/2021,Currys, Laptop charging cable ,5220,64070,ICT Hardware,45.08,,Human Resources
06/08/2021,Google,Map searches for HDC,5229,64071,ICT Software,381.12,,ICT
06/08/2021,Amazon,Prime,4130,61713,Equipment,7.99,,Countryside Services
06/08/2021,Amazon,Pens,4129,61709,Materials,6.16,,Operations
06/08/2021,Honey Brothers Ltd,H&S Equipment,5209,61713,Equipment,200.82,,Operations
07/08/2021,Mailchimp,Bulk emails,4130,64100,Postage & Courier Services,68.91,,Corporate Office
07/08/2021,Zoom,Licence for Virtual Committee Meeetings,4130,64072,ICT Licence,191.90,,Corporate Office
07/08/2021,Axosoft,Equipment,5224,64070,ICT Hardware,182.00,,ICT
09/08/2021,Paddle,Equipment,5224,64070,ICT Hardware,60.00,,ICT
09/08/2021,Cartridge Save,Equipment,5224,64070,ICT Hardware,49.28,,ICT
09/08/2021,Atlassian,JIRA Subscription,5286,64071,ICT Software,472.23,,ICT
10/08/2021,Mailchimp,Bulk emails,4130,64100,Postage & Courier Services,471.78,,Corporate Office
10/08/2021,adobe,Equipment,4010,62005,"Advertising, Publicity & Marketing",41.62,,One Leisure
10/08/2021,Tamar Telecoms,0300 number for BldgCont,5222,64077,Land Line Rental,17.99,,ICT
10/08/2021,Miro,Research collaboration tool,4148,64071,ICT Software,74.46,,Transformation
11/08/2021,Amazon,Equipment,5276,61713,Equipment,10.99,,Facilities Management
11/08/2021,Nisbets,Equipment,5276,61713,Equipment,23.95,,Facilities Management
11/08/2021,Nisbets,Equipment,5276,61713,Equipment,105.54,,Facilities Management
12/08/2021,Free Card Machines.co.uk,Sum Up card readers x 4,4106,64070,ICT Hardware,259.26,,Active Leisure
12/08/2021,Free Card Machines.co.uk,Sum Up card readers x 4,4106,64070,ICT Hardware,259.26,,Active Leisure
12/08/2021,Free Card Machines.co.uk,Postage,4106,64100,Postage & Courier Services,4.20,,Active Leisure
12/08/2021,Free Card Machines.co.uk,Postage,4106,64100,Postage & Courier Services,4.20,,Active Leisure
12/08/2021,Amazon,"Premier Sports badminton set. 2 rackets and 1 shuttlecock. Garden game, beach game 2 player badminton",4118,61713,Equipment,20.00,,Countryside Services
13/08/2021,J2 eFax,Fax-to-email software,5222,64071,ICT Software,19.20,,ICT
13/08/2021,Digicert,Equipment,5224,64070,ICT Hardware,177.23,,ICT
13/08/2021,Infogram,Equipment,5224,64070,ICT Hardware,170.23,,ICT
13/08/2021,1 and 1 Ionos Ltd,Equipment,5224,64070,ICT Hardware,68.76,,ICT
13/08/2021,KEHF LIMITED LONDON,VIRT CONF 28/6/21,5220,60115,Staff Training & Development,210.00,,One Leisure
14/08/2021,Guardian news and media,Recruitment Ad for Corporate Director (Place) vacancy,4135,60116,Staff Recruitment,"1,170.00",,Corporate Office
14/08/2021,AutoSPF,Email,5286,64071,ICT Software,8.96,,ICT
15/08/2021,Apple,Equipment,4072,61713,Equipment,79.00,,One Leisure
16/08/2021,Facebook,Marketing,4010,62005,"Advertising, Publicity & Marketing",108.13,,One Leisure
16/08/2021,Amazon,"Pvc Footballs 8"" 12/Pack (Deflated) (R38088)",4118,61713,Equipment,35.85,,Countryside Services
16/08/2021,Facebook,Trail Tale and Click it Local ads,4170,62005,"Advertising, Publicity & Marketing",275.97,,Operations
17/08/2021,Piktochart,Equipment,5224,64070,ICT Hardware,29.77,,ICT
17/08/2021,Zoom,SCDC Conf Calling,5223,64071,ICT Software,61.94,,ICT
18/08/2021,Amazon,Eatwell Plate Food,4097,61713,Equipment,23.99,,Active Leisure
18/08/2021,adobe,Equipment,4010,62005,"Advertising, Publicity & Marketing",41.62,,One Leisure
19/08/2021,B & Q,Equipment,4072,61713,Equipment,87.80,,One Leisure
19/08/2021,B & Q,Equipment,4072,61713,Equipment,-87.80,,One Leisure
19/08/2021,B & Q,Equipment,4072,61713,Equipment,87.80,,One Leisure
19/08/2021,RLSS,Lifeguard Qualification,4021,60115,Staff Training & Development,106.50,,One Leisure
19/08/2021,Amazon,"Other 20 pcs PVC PLASTIC FOOTBALLS 8.5"" FLAT PACKED UN-INFLATED WHOLESALE JOBLOT",4118,61713,Equipment,14.49,,Countryside Services
20/08/2021,Mark Harrod Ltd,Equipment,4072,61713,Equipment,348.00,,One Leisure
20/08/2021,Amazon,Sports equipment - Boules set,4129,61706,Playground Equipment,43.90,,Operations
22/08/2021,Postman Team (Monthly),Digital Team,5286,64071,ICT Software,124.90,,ICT
23/08/2021,Bookers,Burgess Bar,4049,61905,Bar Provisions,"1,430.01",,One Leisure
23/08/2021,Mailchimp,MailChimp Subscription,5227,64071,ICT Software,14.80,,ICT
23/08/2021,Mailchimp,Mandrill Auto Email,5222,64071,ICT Software,65.20,,ICT
23/08/2021,Zoom,SCDC Conf Calling,5223,64071,ICT Software,18.58,,ICT
24/08/2021,Leisure jobs,OL Team Leader adverts,4010,60116,Staff Recruitment,180.00,,Human Resources
24/08/2021,Balsamiq,Digital Team,5286,64071,ICT Software,6.76,,ICT
24/08/2021,Vevoruk,Equipment,4130,61713,Equipment,82.99,,Countryside Services
24/08/2021,Waitrose Direct,Staff Rewards,4143,60124,Team Rewards,32.95,,Operations
25/08/2021,Gen Register Officer,Birth Cert for *Redacted*,4440,64403,Homeless Prevention Payments,38.00,,Housing
25/08/2021,Gen Register Officer,Birth Cert Refund for *Redacted*,4440,64403,Homeless Prevention Payments,-31.50,,Housing
25/08/2021,screwfix,Equipment,4063,60201,Maintenance - Building,593.58,,One Leisure
25/08/2021,Amazon,Sports equipment,4129,61706,Playground Equipment,274.96,,Operations
26/08/2021,Hootsuite,Social Media Platform Licence,4010,62005,"Advertising, Publicity & Marketing",142.80,,One Leisure
26/08/2021,Amazon,Equipment,5224,64070,ICT Hardware,21.98,,ICT
27/08/2021,Timpsons,Equipment,5276,61713,Equipment,300.00,,Facilities Management
27/08/2021,Dropbox,External File Storage,4010,62005,"Advertising, Publicity & Marketing",9.99,,One Leisure
27/08/2021,Smarty,Equipment,5224,64070,ICT Hardware,20.00,,ICT
28/08/2021,iStock,Image Library Supply,4010,62005,"Advertising, Publicity & Marketing",84.00,,One Leisure
28/08/2021,Firstaid Warehouse,First Aid Kits,4021,61713,Equipment,149.50,,One Leisure
29/08/2021,Google,Map searches for HDC,5229,64071,ICT Software,240.11,,ICT
31/08/2021,Mailchimp,Externa Mail Management,4010,62005,"Advertising, Publicity & Marketing",9.24,,One Leisure
31/08/2021,Tritek Ltd,Equipment,5224,64070,ICT Hardware,47.21,,ICT
31/08/2021,Amazon,HENBRANDT 24 x Dinosaur Gliders,4118,61713,Equipment,3.99,,Countryside Services
31/08/2021,Amazon,"Other 20 pcs PVC PLASTIC FOOTBALLS 8.5"" FLAT PACKED
UN-INFLATED WHOLESALE JOBLOT ",4118,61713,Equipment,14.49,,Countryside Services
01/09/2021,Screwfix,Fire Extinguishers,4021,61713,Equipment,89.97,,One Leisure
01/09/2021,Zoom,SCDC Conf Calling,5223,64071,ICT Software,559.85,,ICT
01/09/2021,Amazon,Magnetic tape,4343,61713,Equipment,20.97,,Operations
01/09/2021,Hazexperts,Chemical Fly Tip,4327,64050,Waste Disposal,474.00,,Operations
01/09/2021,Screfix Direct,Work Boots,4317,62000,"Clothes, Uniform & Laundry",72.99,,Operations
01/09/2021,Amazon,Ram Mounts,4343,61713,Equipment,93.96,,Operations
02/09/2021,Worderwall,Equipment,4072,61713,Equipment,171.60,,One Leisure
02/09/2021,Google,Map searches for HDC,5229,64071,ICT Software,521.18,,ICT
02/09/2021,AMAZON,2 @ TRICEP PULL DOWN,4053,61713,Equipment,29.90,,One Leisure
03/09/2021,Screwfix,Equipment,4021,61713,Equipment,6.50,,One Leisure
04/09/2021,Microsoft,Azure,5286,64071,ICT Software,9.66,,ICT
04/09/2021,Twillio,Voice bots service,4151,64071,ICT Software,10.09,,Transformation
06/09/2021,Digital ID,Access Cards & Printer Ribbon,5288,61709,Materials,275.51,,Facilities Management
06/09/2021,Digital ID,Access Cards,5288,61709,Materials,269.40,,Facilities Management
06/09/2021,Timpsons,Key cutting,5288,61709,Materials,22.50,,Facilities Management
06/09/2021,Albion Detection Systems,Portable Hearing Loop,5288,61709,Materials,168.00,,Facilities Management
06/09/2021,Timpsons,Key cutting,5288,61709,Materials,9.00,,Facilities Management
06/09/2021,Amazon,Prime,4130,61713,Equipment,7.99,,Countryside Services
06/09/2021,Amazon,Equipment,4118,61713,Equipment,20.99,,Countryside Services
06/09/2021,Amazon,Equipment,4118,61713,Equipment,5.70,,Countryside Services
06/09/2021,Amazon,Equipment,4118,61713,Equipment,12.99,,Countryside Services
07/09/2021,M6 Toll,Travel to Blackburn for meeting Electra,5204,60907,Other Vehicle Costs,7.00,,Operations
07/09/2021,Floresco Training,Menopause speaker,5220,60115,Staff Training & Development,600.00,,Human Resources
07/09/2021,Mailchimp,Bulk emails,4135,64100,Postage & Courier Services,69.13,,Corporate Office
07/09/2021,Amazon,OLSN - Gym Equpment,4072,61713,Equipment,307.92,,One Leisure
07/09/2021,Amazon,OLSN - fitness equipment,4077,61713,Equipment,6.93,,One Leisure
07/09/2021,Amazon,OLSN - Gym Equpment,4072,61713,Equipment,49.95,,One Leisure
07/09/2021,Zoom,Licence for Virtual Committee Meeetings,4130,64072,ICT Licence,191.90,,Corporate Office
08/09/2021,eBay,Equipment,4021,61713,Equipment,40.00,,One Leisure
08/09/2021,Amazon,Equipment,4118,61713,Equipment,5.50,,Countryside Services
08/09/2021,Amazon,Equipment,4118,61713,Equipment,3.99,,Countryside Services
09/09/2021,Easy Retro,Equipment,5224,64070,ICT Hardware,60.00,,ICT
09/09/2021,Parcel Force,Equipment,5224,64070,ICT Hardware,41.94,,ICT
09/09/2021,Atlassian,JIRA Subscription,5286,64071,ICT Software,454.57,,ICT
09/09/2021,Always Greener Ltd,Equipment,4118,61713,Equipment,249.60,,Countryside Services
09/09/2021,E-bay,Stickers,4184,61709,Materials,25.00,,Operations
10/09/2021,Global insight conference,EDI conference,5220,60115,Staff Training & Development,332.48,,Human Resources
10/09/2021,Mailchimp,Bulk emails,4130,64100,Postage & Courier Services,474.76,,Corporate Office
10/09/2021,Adobe,Marketing,4010,62005,"Advertising, Publicity & Marketing",41.62,,One Leisure
10/09/2021,Tamar Telecoms,0300 number for BldgCont,5222,64077,Land Line Rental,17.99,,ICT
10/09/2021,Amazon,Pirate Outfits/Banners/Stickers,5092,62005,"Advertising, Publicity & Marketing",49.54,,Operations
10/09/2021,Miro,Research collaboration tool,4148,64071,ICT Software,74.47,,Transformation
11/09/2021,Amazon,BH - Equipment,4050,61713,Equipment,30.86,,One Leisure
13/09/2021,RLSS ,Lifeguard Qualification,4021,60115,Staff Training & Development,53.16,,One Leisure
13/09/2021,Amazon,Equipment,4021,61713,Equipment,17.94,,One Leisure
13/09/2021,J2 eFax,Fax-to-email software,5222,64071,ICT Software,19.20,,ICT
14/09/2021,Facebook,Marketing,4010,62005,"Advertising, Publicity & Marketing",200.00,,One Leisure
14/09/2021,Qualsafe,Equipment,4021,61713,Equipment,482.70,,One Leisure
14/09/2021,Hotline,CRC Student Registration Event Stationery,4604,62002,Stationary,979.27,,Corporate Office
14/09/2021,AutoSPF,Email,5286,64071,ICT Software,8.96,,ICT
14/09/2021,Money Claim Online,Legal action for HB recovery,9167,12052,Sales Control,50.00,,Benefits
14/09/2021,Amazon,Dog Bags,4129,61706,Playground Equipment,15.99,,Operations
15/09/2021,Sainsburys,supplies for recruitment day,4145,61903,Hospitality,29.29,,Corporate Office
15/09/2021,Screwfix,Equipment,4021,61713,Equipment,59.99,,One Leisure
15/09/2021,Amazon,Equipment,4118,61713,Equipment,39.95,,Countryside Services
16/09/2021,Training Link,Staff Training - AAT Level 3,5262,60115,Staff Training & Development,685.00,,Finance
16/09/2021,Amazon,Equipment,4021,61713,Equipment,179.00,,One Leisure
16/09/2021,Amazon,Equipment,5224,64070,ICT Hardware,62.97,,ICT
16/09/2021,Amazon,Equipment,5224,64070,ICT Hardware,11.97,,ICT
16/09/2021,Amazon,Equipment,5224,64070,ICT Hardware,5.14,,ICT
16/09/2021,Amazon,Equipment,4118,61713,Equipment,7.66,,Countryside Services
16/09/2021,Facebook,Trail Tale and Click it Local ads,4170,62005,"Advertising, Publicity & Marketing",351.46,,Operations
17/09/2021,Facebook,Marketing,4010,62005,"Advertising, Publicity & Marketing",12.66,,One Leisure
17/09/2021,Amazon,Equipment,5224,64070,ICT Hardware,57.90,,ICT
17/09/2021,Amazon,Ram Mount,4343,61713,Equipment,68.39,,Operations
17/09/2021,Screwfix Direct,Work Boots,4317,62000,"Clothes, Uniform & Laundry",72.99,,Operations
18/09/2021,Facebook,Advertising,4010,62005,"Advertising, Publicity & Marketing",7.00,,One Leisure
18/09/2021,Marks and Spencer,Food for buffet lunch - recruitment day,4145,61903,Hospitality,94.01,,Corporate Office
18/09/2021,Adobe,marketing,4010,62005,"Advertising, Publicity & Marketing",41.62,,One Leisure
19/09/2021,Amazon,OLR - Gym ,4029,61713,Equipment,72.56,,One Leisure
20/09/2021,DVLA,Vehicle Excise Duty,5204,60905,Vehicle Licencing,277.50,,Operations
20/09/2021,DVLA,Vehicle Excise Duty,5204,60905,Vehicle Licencing,302.50,,Operations
20/09/2021,DVLA,Vehicle Excise Duty,5204,60905,Vehicle Licencing,302.50,,Operations
20/09/2021,DVLA,Vehicle Excise Duty,5204,60905,Vehicle Licencing,277.50,,Operations
20/09/2021,DVLA,Vehicle Excise Duty,5204,60905,Vehicle Licencing,277.50,,Operations
20/09/2021,DVLA,Vehicle Excise Duty,5204,60905,Vehicle Licencing,302.50,,Operations
20/09/2021,DVLA,Vehicle Excise Duty,5204,60905,Vehicle Licencing,277.50,,Operations
21/09/2021,Facebook,Advertising,4010,62005,"Advertising, Publicity & Marketing",7.00,,One Leisure
21/09/2021,Amazon,OLSN - Gym Equpment,4072,61713,Equipment,13.99,,One Leisure
21/09/2021,Vistaprint,CRC Student Registration Event Stationery,4604,62001,Printing,86.98,,Corporate Office
22/09/2021,Tesco,Petrol for Tractor,4075,61713,Equipment,15.09,,One Leisure
22/09/2021,B&M,Storge Unit,4075,61713,Equipment,30.00,,One Leisure
22/09/2021,Amazon,OLSN - Buildings,4075,60201,Maintenance - Building,18.95,,One Leisure
22/09/2021,Amazon,OLSN - Gym Equpment,4072,61713,Equipment,99.95,,One Leisure
22/09/2021,Postman Team (Monthly),Digital Team,5286,64071,ICT Software,124.83,,ICT
23/09/2021,MHFA England,CPD,5220,60115,Staff Training & Development,273.16,,Human Resources
23/09/2021,Reed,Parking services role,4263,60116,Staff Recruitment,106.80,,Human Resources
23/09/2021,Facebook,Advertising,4010,62005,"Advertising, Publicity & Marketing",6.00,,One Leisure
23/09/2021,Amazon,OLSN - Gym Equpment,4072,61713,Equipment,-45.96,,One Leisure
23/09/2021,Physical Company,OLR - Gym ,4029,61713,Equipment,25.47,,One Leisure
23/09/2021,Poundland,CRC Student Registration Event Stationery,4604,62002,Stationary,4.00,,Corporate Office
23/09/2021,Sainsbury's,CRC Student Registration Event Stationery,4604,62002,Stationary,11.00,,Corporate Office
23/09/2021,Mailchimp,MailChimp Subscription,5227,64071,ICT Software,14.79,,ICT
23/09/2021,Mailchimp,Mandrill Auto Email,5222,64071,ICT Software,65.17,,ICT
23/09/2021,Amazon,Equipment,4118,61713,Equipment,12.34,,Countryside Services
23/09/2021,Amazon,Equipment,4118,61713,Equipment,8.59,,Countryside Services
23/09/2021,Amazon,Keyboard and Laptop Stand,5285,61713,Equipment,26.47,,Operations
23/09/2021,Amazon,Laptop stand,5285,61713,Equipment,8.49,,Operations
24/09/2021,Latta Hire,OLSIO - BuildingsHire,4063,61700,Equipment Hire,144.00,,One Leisure
24/09/2021,Balsamiq,Digital Team,5286,64071,ICT Software,6.78,,ICT
24/09/2021,Amazon,Equipment,4118,61713,Equipment,11.95,,Countryside Services
24/09/2021,AMAZON.CO.UK,70 KEY TAGS PLASTIC - BURGESS,4050,61709,Materials,7.99,,One Leisure
26/09/2021,Hootsuite,Social Media Platform Licence,4010,62005,"Advertising, Publicity & Marketing",142.80,,One Leisure
26/09/2021,Amazon,CRC Student Registration Event Stationery,4604,62003,"Books, Publications & Resources",38.97,,Corporate Office
26/09/2021,Wilko,CRC Student Registration Event Stationery,4604,62003,"Books, Publications & Resources",25.00,,Corporate Office
26/09/2021,Amazon,Equipment,5224,64070,ICT Hardware,20.99,,ICT
26/09/2021,Amazon,DVD-R,5285,61713,Equipment,120.90,,Operations
27/09/2021,Linked in,Monthly recruitment licence,5220,60115,Staff Training & Development,49.99,,Human Resources
27/09/2021,Dropbox,External File Storage,4010,62005,"Advertising, Publicity & Marketing",9.99,,One Leisure
27/09/2021,The Ribbon Company,Ceremonial Ribbon (3G opening),4107,61713,Equipment,16.99,,Active Leisure
28/09/2021,EB Online Training,course,5220,60115,Staff Training & Development,90.00,,Human Resources
28/09/2021,Myers Briggs Co,Comms team day,5220,60115,Staff Training & Development,42.50,,Human Resources
28/09/2021,Myers Briggs Co,Comms team day,5220,60115,Staff Training & Development,9.00,,Human Resources
28/09/2021,Myers Briggs Co,Comms team day,5220,60115,Staff Training & Development,220.80,,Human Resources
28/09/2021,Huntingdonshire District Council,Homeless Prevention Payment - *Redacted*,4440,64403,Homeless Prevention Payments,193.49,,Housing
28/09/2021,Amazon,HDMI Cable ,4055,64070,ICT Hardware,4.98,,One Leisure
28/09/2021,iStock,Image Library Supply,4010,62005,"Advertising, Publicity & Marketing",84.00,,One Leisure
28/09/2021,Amazon,OLSN - Buildings,4075,60201,Maintenance - Building,8.99,,One Leisure
28/09/2021,Amazon,OLSN - Buildings,4075,60201,Maintenance - Building,4.61,,One Leisure
28/09/2021,Google,Map searches for HDC,5229,64071,ICT Software,205.03,,ICT
29/09/2021,Performance Health Systems,Call out and repair powerplate,4018,61702,Equipment Maintenace,180.00,,One Leisure
30/09/2021,Mailchimp,Externa Mail Management,4010,62005,"Advertising, Publicity & Marketing",9.46,,One Leisure
30/09/2021,Amazon,OLSN - Buildings,4075,60201,Maintenance - Building,12.49,,One Leisure
15/10/2021,Qualsafe,Training materials NPLQ,4075,61709,Materials,280.92,,One Leisure
05/10/2021,Screwfix,Cordless Pressure Washer,5288,61709,Materials,95.98,,Facilities Management
10/10/2021,Amazon,Co2 Monitors,5288,61709,Materials,290.00,,Facilities Management
10/10/2021,Amazon,Co2 Monitors,5288,61709,Materials,290.00,,Facilities Management
18/10/2021,Amazon,Paper Cups,5288,61709,Materials,70.64,,Facilities Management
22/10/2021,Boing Rapid Secure,Boarding Up St Ives Bus Station,5288,61709,Materials,216.00,,Facilities Management
29/10/2021,Timpson,Mortice Keys,5288,61709,Materials,20.00,,Facilities Management
01/11/2021,Connect Distribution Services,Carpet Washer Wand,5288,61709,Materials,153.95,,Facilities Management
02/11/2021,Amazon,Floor Lifters,5288,61709,Materials,54.94,,Facilities Management
08/10/2021,Travelodge Cambridge (TA),Temporary Accommodation,4440,64401,B & B Accomodation,2.50,,Housing
08/10/2021,Travelodge Cambridge (TA),Temporary Accommodation,4440,64401,B & B Accomodation,737.90,,Housing
18/10/2021,Huntingdonshire District Council,Homeless Prevntion Payment,4440,64403,Homeless Prevention Payments,128.38,,Housing
18/10/2021,Travelodge Cambridge (TA),Temporary Accommodation,4440,64401,B & B Accomodation,2.50,,Housing
18/10/2021,Travelodge Cambridge (TA),Temporary Accommodation,4440,64401,B & B Accomodation,538.93,,Housing
19/10/2021,Huntingdonshire District Council,Homeless Prevntion Payment,4440,64403,Homeless Prevention Payments,141.33,,Housing
21/10/2021,General Registration Office,Birth Certificate Order,4440,64403,Homeless Prevention Payments,14.00,,Housing
22/10/2021,Ready Steady Storage,1st Storage Payment,4440,63700,Removal Services,80.00,,Housing
25/10/2021,Travelodge Cambridge (TA),Temporary Accommodation,4440,64401,B & B Accomodation,577.93,,Housing
06/10/2021,DVLA,Vehicle Excise Duty,5204,60905,Vehicle Licencing,302.50,,Operations
06/10/2021,DVLA,Vehicle Excise Duty,5204,60905,Vehicle Licencing,277.50,,Operations
06/10/2021,DVLA,Vehicle Excise Duty,5204,60905,Vehicle Licencing,302.50,,Operations
06/10/2021,DVLA,Vehicle Excise Duty,5204,60905,Vehicle Licencing,277.50,,Operations
06/10/2021,DVLA,Vehicle Excise Duty,5204,60905,Vehicle Licencing,302.50,,Operations
06/10/2021,DVLA,Vehicle Excise Duty,5204,60905,Vehicle Licencing,302.50,,Operations
06/10/2021,DVLA,Vehicle Excise Duty,5204,60905,Vehicle Licencing,277.50,,Operations
06/10/2021,DVLA,Vehicle Excise Duty,5204,60905,Vehicle Licencing,277.50,,Operations
06/10/2021,DVLA,Vehicle Excise Duty,5204,60905,Vehicle Licencing,302.50,,Operations
05/10/2021,CMT Equipment,Masks Visors (refund for 03/07/2020 Credit card charge),4130,62000,"Clothes, Uniform & Laundry",-780.00,,Operations
06/10/2021,Solo press,Leaflet/poster printing,4010,62005,"Advertising, Publicity & Marketing",54.00,,One Leisure
06/10/2021,Solo press,Leaflet/poster printing,4010,62005,"Advertising, Publicity & Marketing",51.14,,One Leisure
20/10/2021,Canva,"Canvo pro, poster making platform",4010,62005,"Advertising, Publicity & Marketing",99.99,,One Leisure
21/10/2021,Facebook,Advertising,4010,62005,"Advertising, Publicity & Marketing",7.00,,One Leisure
24/10/2021,Facebook,Advertising,4010,62005,"Advertising, Publicity & Marketing",7.00,,One Leisure
27/10/2021,Facebook,Advertising,4010,62005,"Advertising, Publicity & Marketing",7.00,,One Leisure
03/10/2021,Facebook,Facebook Advert,4098,62005,"Advertising, Publicity & Marketing",14.00,,Active Leisure
07/10/2021,Amazon,Weights Trolley,4098,61713,Equipment,30.79,,Active Leisure
03/11/2021,Facebook,Facebook Advert,4097,62005,"Advertising, Publicity & Marketing",16.00,,Active Leisure
05/10/2021,Amazon,OLSN Material,4075,61709,Materials,38.97,,One Leisure
10/10/2021,Adobe,Marketing,4010,62005,"Advertising, Publicity & Marketing",41.62,,One Leisure
12/10/2021,The trainline,travel allowance,4010,60111,Occupational Health,57.66,,One Leisure
12/10/2021,Facebook,Marketing,4010,62005,"Advertising, Publicity & Marketing",200.00,,One Leisure
14/10/2021,Amazon,OLSN Material,4075,61709,Materials,16.48,,One Leisure
15/10/2021,ebay,OLSI Equipment,4055,61713,Equipment,6.10,,One Leisure
16/10/2021,facebook,Marketing,4010,62005,"Advertising, Publicity & Marketing",34.30,,One Leisure
18/10/2021,Abode,Marketing,4010,62005,"Advertising, Publicity & Marketing",41.62,,One Leisure
20/10/2021,ebay,OLSI Equipment,4055,61713,Equipment,10.42,,One Leisure
20/10/2021,amazon,OLSN Materials,4075,61709,Materials,20.99,,One Leisure
21/10/2021,Active IQ,Training,4021,60115,Staff Training & Development,900.00,,One Leisure
24/10/2021,booker,burgess bar drink,4049,61905,Bar Provisions,"1,572.15",,One Leisure
24/10/2021,booker,Burgess Bar - Catering ,4049,61900,Catering Supplies,76.26,,One Leisure
24/10/2021,booker,Burgess Bar Conf,4049,61906,Confectionary,66.97,,One Leisure
24/10/2021,booker,Burgess Bar Materials,4049,61709,Materials,94.27,,One Leisure
31/10/2021,Amazon,OLR Equipment,4032,61713,Equipment,289.49,,One Leisure
31/10/2021,Booker,Burgess Bar Drink,4049,61905,Bar Provisions,285.48,,One Leisure
31/10/2021,booker,Burgess Bar Materials,4049,61709,Materials,172.75,,One Leisure
07/10/2021,Zoom,Licence for Virtual Committee Meeetings,4130,64072,ICT Licence,191.90,,Corporate Office
06/10/2021,Amazon,Prime,4130,61713,Equipment,7.99,,Countryside Services
04/10/2021,Amazon,Dino Gliders,4118,61400,Goods for Resale,3.49,,Countryside Services
04/10/2021,Amazon,Wide Angle Mirror,4119,62900,Events,33.99,,Countryside Services
04/10/2021,Amazon,Frizbees,4118,61400,Goods for Resale,25.98,,Countryside Services
10/10/2021,Amazon,Body Paint,4118,62900,Events,11.04,,Countryside Services
12/10/2021,Amazon,Latex Witch Nose,4118,62900,Events,7.95,,Countryside Services
19/10/2021,Amazon,Step Ladder,4118,62900,Events,21.94,,Countryside Services
25/10/2021,Amazon,All Hallows Stickers,4118,61400,Goods for Resale,6.99,,Countryside Services
25/10/2021,Amazon,Acrylic Paint,4118,62900,Events,9.99,,Countryside Services
31/10/2021,Amazon,Till Rolls,4119,62900,Events,7.99,,Countryside Services
13/10/2021,POST OFFICE SERV,2nd CLASS STAMPS - OLSN,4075,64100,Postage & Courier Services,15.84,,One Leisure
20/10/2021,AMAZON,2 @ HUGGIES LTL SWIMMERS,4055,61400,Goods for Resale,12.86,,One Leisure
01/10/2021,Far Away Art,Food Labels for HCP,4184,61709,Materials,495.00,,Operations
02/10/2021,Amazon,Earphones,5285,61713,Equipment,9.89,,Operations
02/10/2021,Amazon,Earphones,5285,61713,Equipment,7.99,,Operations
04/10/2021,Royal Mail,Stamps,4362,69150,Other Services,132.00,,Operations
05/10/2021,EB Online Training,Climate Emergency Training,5285,60115,Staff Training & Development,90.00,,Operations
08/10/2021,Government Events,Future of British High St - Recovery from Covid 19,5285,60115,Staff Training & Development,346.80,,Operations
08/10/2021,Cineworld,Staff Rewards,4143,60124,Team Rewards,30.00,,Operations
08/10/2021,EB Online Training,Climate Emergency Training,5285,60115,Staff Training & Development,90.00,,Operations
11/10/2021,Woodford Recycling,Disposal of Hazardous Waste,4327,64050,Waste Disposal,306.00,,Operations
18/10/2021,Amazon,Mouse,5285,61713,Equipment,14.00,,Operations
19/10/2021,Bloom & Wild,Flowers,4143,60124,Team Rewards,86.00,,Operations
19/10/2021,Ebay Commerce UK,Road Closed Sign,4187,61713,Equipment,54.99,,Operations
21/10/2021,Mammoth retail,Safety Boots,4317,62000,"Clothes, Uniform & Laundry",169.95,,Operations
21/10/2021,Pixsy,Case Resolution,5285,63200,Legal Fees,500.00,,Operations
22/10/2021,EVAQ8,Grab Bag Emergency Pack,4129,61706,Playground Equipment,453.60,,Operations
25/10/2021,Timpson Ltd,Cylinder Keys,4129,61706,Playground Equipment,190.00,,Operations
29/10/2021,Ebay Commerce UK,Pedestrians Crossing Sign,4187,61713,Equipment,159.96,,Operations
29/10/2021,Just Eat,Staff Rewards,4143,60124,Team Rewards,30.00,,Operations
01/11/2021,Amazon,Staff Rewards,4143,60124,Team Rewards,80.00,,Operations
01/11/2021,Amazon,Spon's External Works and Lanscape Price Book 2021,4129,61706,Playground Equipment,165.00,,Operations
01/11/2021,Just Eat,Staff Rewards,4143,60124,Team Rewards,180.00,,Operations
07/10/2021,Mailchimp,Bulk emails,4130,64100,Postage & Courier Services,70.53,,Corporate Office
10/10/2021,Mailchimp,Bulk emails,4130,64100,Postage & Courier Services,480.71,,Corporate Office
08/10/2021,Carden Park Hotel,Hospitality,4145,61903,Hospitality,175.00,,Corporate Office
12/10/2021,Thameslink,Travel,4145,60111,Occupational Health,73.00,,Corporate Office
01/10/2021,amazon,Equipment,5224,64070,ICT Hardware,19.89,,ICT
01/10/2021,Zoom,Meeting Software for SCDC,5223,64071,ICT Software,559.85,,ICT
02/10/2021,Google Cloud,Map searches for HDC,5229,64071,ICT Software,349.31,,ICT
02/10/2021,Digicert,Equipment,5224,64070,ICT Hardware,182.66,,ICT
05/10/2021,Microsoft,Azure,5286,64071,ICT Software,17.92,,ICT
06/10/2021,Amazon,Equipment,5224,64070,ICT Hardware,-19.89,,ICT
07/10/2021,Amazon,Equipment,5224,64070,ICT Hardware,22.46,,ICT
09/10/2021,Atlassian,JIRA Subscription,5286,64071,ICT Software,460.25,,ICT
09/10/2021,Paddle net,Equipment,5224,64070,ICT Hardware,60.00,,ICT
11/10/2021,Ebay,Equipment,5224,64070,ICT Hardware,75.00,,ICT
11/10/2021,Kalnet4U,0300 number for BldgCont,5222,64077,Land Line Rental,504.00,,ICT
11/10/2021,Kalnet4U,0300 number for BldgCont,5222,64077,Land Line Rental,17.99,,ICT
12/10/2021,Iasme,Cyber Essentials,5286,64071,ICT Software,360.00,,ICT
12/10/2021,Zoom,Meeting Software for SCDC,5223,64071,ICT Software,41.29,,ICT
12/10/2021,Zoom,Meeting Software for SCDC,5223,64071,ICT Software,10.32,,ICT
13/10/2021,J2 Efax,Fax-to-email software,5222,64071,ICT Software,19.20,,ICT
14/10/2021,Autospf,Email,5286,64071,ICT Software,9.05,,ICT
14/10/2021,1 and 1 Ionos,Domain,5286,64900,Registration Fee,189.84,,ICT
22/10/2021,Postman Team Monthly,Digital Team,5286,64071,ICT Software,123.68,,ICT
27/10/2021,Balsamiq,Digital Team,5286,64071,ICT Software,6.76,,ICT
28/10/2021,Google Cloud,Map searches for HDC,5229,64071,ICT Software,155.47,,ICT
29/10/2021,Parelforce,Equipment,5224,64070,ICT Hardware,46.50,,ICT
29/10/2021,Mailchimp,MailChimp Subscription,5227,64071,ICT Software,15.07,,ICT
29/10/2021,Mailchimp,Mandrill Auto Email,5222,64071,ICT Software,64.23,,ICT
29/10/2021,Google Cloud,Map searches for HDC,5229,64071,ICT Software,394.33,,ICT
01/11/2021,Paypro Europe,FTP Getter Professional,5224,64070,ICT Hardware,38.42,,ICT
02/11/2021,Zoom,Meeting Software for SCDC,5223,64071,ICT Software,639.84,,ICT
02/11/2021,PMC Electrics,Equipment,5224,64070,ICT Hardware,134.88,,ICT
01/10/2021,Amazon,Equipment,5210,60115,Staff Training & Development,9.99,,Human Resources
04/10/2021,Institute of Internal Auditors,Professional Fees,5210,60115,Staff Training & Development,46.80,,Human Resources
14/10/2021,Dominos,Equipment,5210,60115,Staff Training & Development,41.45,,Human Resources
14/10/2021,EB Online Training,Training,5220,60115,Staff Training & Development,6.00,,Human Resources
18/10/2021,Next,Equipment,5210,60115,Staff Training & Development,30.00,,Human Resources
18/10/2021,Amazon,Equipment,5210,60115,Staff Training & Development,33.96,,Human Resources
21/10/2021,Leisure Jobs.com,Recruitment,4098,60116,Staff Recruitment,180.00,,Human Resources
27/10/2021,Linked In,Monthly recruitment licence,5220,60116,Staff Recruitment,49.99,,Human Resources
29/10/2021,Origym,Training,5210,60115,Staff Training & Development,599.00,,Human Resources
26/10/2021,Hoosuite,Social Media Platform Licence,4010,62005,"Advertising, Publicity & Marketing",142.80,,One Leisure
28/10/2021,iStock,Image Library Supply,4010,62005,"Advertising, Publicity & Marketing",84.00,,One Leisure
29/10/2021,Dropbox,External File Storage,4010,62005,"Advertising, Publicity & Marketing",9.99,,One Leisure
18/10/2021,Medisave,Expenses,5262,63900,Misc Expences,138.96,,Finance
19/10/2021,Digicert,Equipment,5224,64070,ICT Hardware,190.59,,ICT
30/09/2021,Twillo,Voice bots service,4151,64071,ICT Software,10.01,,Transformation
10/10/2021,Miro,Research collaboration tool,4148,64071,ICT Software,75.80,,Transformation
28/10/2021,Twillo,Voice bots service,4151,64071,ICT Software,10.17,,Transformation
15/10/2021,TAHDAH ,Equipment,4021,61713,Equipment,403.00,,One Leisure
19/10/2021,TAHDAH ,Equipment,4021,61713,Equipment,61.00,,One Leisure
19/10/2021,amazon,Equipment,4021,61713,Equipment,9.99,,One Leisure
21/10/2021,amazon,Equipment,4021,61713,Equipment,12.98,,One Leisure
21/10/2021,Tesco,Equipment,4021,61713,Equipment,3.50,,One Leisure
21/10/2021,B & Q,Equipment,4021,61713,Equipment,5.35,,One Leisure
03/11/2021,Primal Strength,Gym Flooring,100020,60201,Maintenance - Building,740.65,,One Leisure
03/11/2021,Primal Strength,Gym Flooring,100020,60201,Maintenance - Building,"1,000.00",,One Leisure
10/11/2021,Adobe,Marketing,4010,62005,"Advertising, Publicity & Marketing",41.62,,One Leisure
11/11/2021,Amazon,OLSN Maintenance,4075,60201,Maintenance - Building,7.89,,One Leisure
11/11/2021,amazon,OLSN Maintenance,4075,60201,Maintenance - Building,100.17,,One Leisure
11/11/2021,Facebook,Marketing,4010,62005,"Advertising, Publicity & Marketing",200.00,,One Leisure
14/11/2021,Amazon,OLSN Maintenance,4075,60201,Maintenance - Building,7.99,,One Leisure
14/11/2021,Booker,Burgess Bar,4049,61905,Bar Provisions,7.79,,One Leisure
14/11/2021,Booker,Burgess Catering,4049,61900,Catering Supplies,44.18,,One Leisure
14/11/2021,Booker,Burgess Confectionary,4049,61906,Confectionary,45.54,,One Leisure
14/11/2021,Booker,Material,4052,61709,Materials,6.59,,One Leisure
14/11/2021,Booker,Catering,4052,61900,Catering Supplies,44.02,,One Leisure
16/11/2021,facebook,Marketing,4010,62005,"Advertising, Publicity & Marketing",37.69,,One Leisure
18/11/2021,Adobe,Marketing,4010,62005,"Advertising, Publicity & Marketing",41.62,,One Leisure
23/11/2021,Amazon,OLSN Maintenance,4075,60201,Maintenance - Building,8.99,,One Leisure
25/11/2021,Amazon,OLSN Maintenance,4075,60201,Maintenance - Building,-33.39,,One Leisure
26/11/2021,Kit Locker,Uniform all sites,4075,62000,"Clothes, Uniform & Laundry",274.37,,One Leisure
26/11/2021,Kit Locker,Uniform all sites,4021,62000,"Clothes, Uniform & Laundry",274.37,,One Leisure
26/11/2021,Kit Locker,Uniform all sites,4055,62000,"Clothes, Uniform & Laundry",274.37,,One Leisure
26/11/2021,Kit Locker,Uniform all sites,4032,62000,"Clothes, Uniform & Laundry",274.39,,One Leisure
27/11/2021,Prodirect soccer,Uniform all sites,4075,62000,"Clothes, Uniform & Laundry",126.91,,One Leisure
27/11/2021,Prodirect soccer,Uniform all sites,4021,62000,"Clothes, Uniform & Laundry",126.93,,One Leisure
27/11/2021,Prodirect soccer,Uniform all sites,4055,62000,"Clothes, Uniform & Laundry",126.93,,One Leisure
27/11/2021,Prodirect soccer,Uniform all sites,4032,62000,"Clothes, Uniform & Laundry",126.93,,One Leisure
28/11/2021,Currys,Tablets,4055,61713,Equipment,"1,044.96",,One Leisure
30/11/2021,Amazon,OLSN Maintenance,4075,60201,Maintenance - Building,14.95,,One Leisure
30/11/2021,Amazon,Tablet Cases,4021,61713,Equipment,45.58,,One Leisure
30/11/2021,Amazon,Tablet Cases,4055,61713,Equipment,45.58,,One Leisure
30/11/2021,Amazon,Tablet Cases,4075,61713,Equipment,22.79,,One Leisure
01/12/2021,Currys,Tablets,4055,61713,Equipment,"-1,044.96",,One Leisure
30/11/2021,Booker,Burgess Catering,4049,61900,Catering Supplies,8.97,,One Leisure
30/11/2021,Booker,Material,4052,61709,Materials,7.90,,One Leisure
30/11/2021,Booker,Burgess Confectionary,4049,61906,Confectionary,111.67,,One Leisure
30/11/2021,Booker,Burgess Bar,4049,61905,Bar Provisions,"1,749.13",,One Leisure
30/11/2021,Booker,Burgess Bar,4049,61300,Cleaning Materials,5.99,,One Leisure
26/11/2021,Myers Briggs Company,MBTI reports - Ec Dev,5220,60115,Staff Training & Development,276.00,,Human Resources
26/11/2021,Myers Briggs Company,MBTI reports - faciliities,5220,60115,Staff Training & Development,441.60,,Human Resources
27/11/2021,Linked In ,Recruitment account,5220,60116,Staff Recruitment,49.99,,Human Resources
02/12/2021,Sports Jobs,OL recruitment role,4098,60116,Staff Recruitment,180.00,,Human Resources
02/12/2021,Sainsburys,Training materials (MBTI/MHFA),5220,60115,Staff Training & Development,69.20,,Human Resources
05/11/2021,Solopress,Posters,4010,62005,"Advertising, Publicity & Marketing",77.06,,One Leisure
16/11/2021,Facebook,Advertising,4010,62005,"Advertising, Publicity & Marketing",9.00,,One Leisure
29/11/2021,Jordan Fitness,Gym Handles,4053,61713,Equipment,126.66,,One Leisure
07/11/2021,Mailchimp,Bulk emails,4135,64100,Postage & Courier Services,71.16,,Corporate Office
10/11/2021,Mailchimp,Bulk emails,4130,64100,Postage & Courier Services,482.84,,Corporate Office
13/11/2021,Hootsuite ,social media management,5175,62005,"Advertising, Publicity & Marketing",210.95,,Corporate Office
19/11/2021,The Boot,Pre-joining lunch with new Corp Director - Place,4145,61903,Hospitality,48.51,,Corporate Office
01/12/2021,Bloom and Wild,Flowers  - get well soon,4145,61903,Hospitality,30.00,,Corporate Office
09/11/2021,NRS Healthcare,Hoist equipment,4021,61709,Materials,415.98,,One Leisure
02/12/2021,B & Q,changing room hose,4021,60201,Maintenance - Building,12.00,,One Leisure
02/12/2021,Wickes,lane rope parts,4021,60201,Maintenance - Building,22.60,,One Leisure
02/12/2021,Wickes,lane rope parts,4021,60201,Maintenance - Building,5.80,,One Leisure
02/12/2021,Wickes,lane rope parts,4021,60201,Maintenance - Building,1.20,,One Leisure
02/12/2021,Wickes,lane rope parts,4021,60201,Maintenance - Building,38.20,,One Leisure
09/11/2021,Amazon,Seal,4118,62900,Events,8.99,,Countryside Services
17/11/2021,Amazon,Costumes,4118,62900,Events,29.97,,Countryside Services
19/11/2021,Amazon,Kitchen Equipment,4118,62900,Events,10.56,,Countryside Services
19/11/2021,Amazon,Marker Pens,4118,62900,Events,3.95,,Countryside Services
19/11/2021,Wilks,Edging for moorings,4124,61709,Materials,390.29,,Countryside Services
24/11/2021,Amazon,Packaging for food items,4118,62900,Events,38.98,,Countryside Services
27/11/2021,Amazon,Labels,4118,62900,Events,3.32,,Countryside Services
27/11/2021,Amazon,Popcorn,4118,62900,Events,26.99,,Countryside Services
27/11/2021,Amazon,Party D�cor,4118,62900,Events,7.19,,Countryside Services
27/11/2021,Amazon,Bags for snacks,4118,62900,Events,13.58,,Countryside Services
27/11/2021,Amazon,Cable Ties,4118,62900,Events,28.98,,Countryside Services
27/11/2021,Amazon,Costumes,4118,62900,Events,114.72,,Countryside Services
27/11/2021,Amazon,Bags for snacks,4118,62900,Events,11.97,,Countryside Services
27/11/2021,Amazon,Party Supplies,4118,62900,Events,18.88,,Countryside Services
28/11/2021,Amazon,Costumes,4118,62900,Events,34.99,,Countryside Services
27/11/2021,Amazon,Costumes,4118,62900,Events,71.96,,Countryside Services
28/11/2021,Amazon,Labels,4118,62900,Events,-3.32,,Countryside Services
29/11/2021,Amazon,Costumes,4118,62900,Events,29.99,,Countryside Services
01/12/2021,Amazon,CO2 Alarm,4130,60207,Health & Safety Supplies,52.99,,Countryside Services
02/12/2021,Amazon,CO2 Alarm,4130,60207,Health & Safety Supplies,100.51,,Countryside Services
05/11/2021,AMAZON,QUICK RELEASE BUCKLES ,4056,61713,Equipment,9.49,,One Leisure
05/11/2021,AMAZON,BABY BATH TOYS ,4056,61713,Equipment,14.39,,One Leisure
05/11/2021,AMAZON,QUICK RELEASE BUCKLES ,4056,61713,Equipment,9.49,,One Leisure
18/11/2021,TV LICENCING DEPT,ANNUAL TV LICENCE OLSI 30/11/22,4055,60410,Licences,159.00,,One Leisure
18/11/2021,TV LICENCING DEPT,ANNUAL TV LICENCE OCOMP 30/11/22,4063,60410,Licences,159.00,,One Leisure
30/11/2021,RLSS UP SHOP,4 @LIFEGUARD MANUAL,4055,61709,Materials,20.00,,One Leisure
30/11/2021,RLSS UP SHOP,4 @LIFEGUARD MANUAL,4055,61709,Materials,4.50,,One Leisure
04/11/2021,Microsoft,Azure,5286,64071,ICT Software,34.78,,ICT
03/11/2021,Premier Inn,Room,5229,60115,Staff Training & Development,237.98,,ICT
09/11/2021,Paddle,EasyRetro,5222,64071,ICT Software,60.00,,ICT
09/11/2021,Atlassian,JIRA Subscription,5286,64071,ICT Software,516.95,,ICT
10/11/2021,Tamar Telecoms,Port numbers for SCDC,5253,64077,Land Line Rental,153.90,,ICT
10/11/2021,Tamar Telecoms,0300 number for BldgCont,5222,64077,Land Line Rental,17.99,,ICT
13/11/2021,J2 eFax,Fax-to-email software,5222,64071,ICT Software,19.20,,ICT
14/11/2021,AutoSPF,Email,5286,64071,ICT Software,9.26,,ICT
16/11/2021,Amazon,Ergonomic Mouse,5227,62002,Stationary,18.98,,ICT
16/11/2021,1&1,Domain Names hunts.net,5286,64900,Registration Fee,19.32,,ICT
16/11/2021,Premier Inn Refund,Room,5229,60115,Staff Training & Development,-237.98,,ICT
22/11/2021,Postman,Digital Team,5286,64071,ICT Software,126.94,,ICT
23/11/2021,MailChimp,MailChimp Subscription,5227,64071,ICT Software,15.06,,ICT
23/11/2021,MailChimp,Mandrill Auto Email,5222,64071,ICT Software,66.25,,ICT
27/11/2021,Google,Map searches for HDC,5229,64071,ICT Software,91.71,,ICT
01/12/2021,Google,City Google Map Searches,5222,64071,ICT Software,318.16,,ICT
01/12/2021,Zoom,Meeting Software for SCDC,5223,64071,ICT Software,639.84,,ICT
13/11/2021,Dunelm,Equipment,4440,61713,Equipment,165.00,,Housing
05/11/2021,The Sweet Store,Equipment,5370,61713,Equipment,10.00,,Operations
18/11/2021,Amazon,Equipment,5370,61713,Equipment,11.94,,Operations
25/11/2021,Amazon,Equipment,5370,61713,Equipment,116.72,,Operations
25/11/2021,Amazon,Equipment,5370,61713,Equipment,199.80,,Operations
25/11/2021,USB2U,Equipment,5370,61713,Equipment,41.94,,Operations
25/11/2021,Amazon,Equipment,5370,61713,Equipment,231.60,,Operations
26/11/2021,Amazon,Equipment,5370,61713,Equipment,171.77,,Operations
25/11/2021,Amazon,Equipment,5370,61713,Equipment,128.85,,Operations
25/11/2021,Amazon,Equipment,5370,61713,Equipment,109.90,,Operations
26/11/2021,Amazon,Equipment,5370,61713,Equipment,79.90,,Operations
26/11/2021,Screwfix,Equipment,5370,61713,Equipment,34.99,,Operations
27/11/2021,Amazon,Equipment,5370,61713,Equipment,6.89,,Operations
28/11/2021,Amazon,Equipment,5370,61713,Equipment,20.67,,Operations
29/11/2021,Royal Mail,Stamps,4362,69150,Other Services,132.00,,Operations
25/11/2021,X X,Equipment,5370,61713,Equipment,512.06,,Operations
29/11/2021,Amazon,Equipment,5370,61713,Equipment,137.65,,Operations
29/11/2021,Amazon,Equipment,5370,61713,Equipment,14.27,,Operations
30/11/2021,Amazon,Equipment,5370,61713,Equipment,39.99,,Operations
01/12/2021,Amazon,Equipment,5370,61713,Equipment,9.99,,Operations
01/12/2021,Amazon,Equipment,5370,61713,Equipment,9.99,,Operations
02/12/2021,Amazon,Equipment,5370,61713,Equipment,249.39,,Operations
02/11/2021,Travelodge Cambridge (TA),Temporary Accommodation,4440,61713,Equipment,571.43,,Housing
21/10/2021,General Registration Office,Equipment,4440,61713,Equipment,-7.50,,Housing
18/11/2021,Argos,Equipment,4440,61713,Equipment,37.00,,Housing
26/11/2021,HDC,Equipment,4440,61713,Equipment,993.61,,Housing
29/11/2021,HDC,Equipment,4440,61713,Equipment,50.00,,Housing
29/11/2021,LAG,Equipment,4440,61713,Equipment,78.50,,Housing
01/12/2021,Cinch Storage,Equipment,4440,61713,Equipment,73.60,,Housing
02/12/2021,General Registration Office,Equipment,4440,61713,Equipment,15.00,,Housing
13/11/2021,Facebook,Facebook Advert,4097,62005,"Advertising, Publicity & Marketing",10.00,,Active Leisure
09/11/2021,NPE,Equipment,5204,60907,Other Vehicle Costs,60.00,,Operations
16/11/2021,Disc Cycle,Equipment,5204,60907,Other Vehicle Costs,822.40,,Operations
16/11/2021,Disc Cycle,Equipment,5204,60907,Other Vehicle Costs,809.99,,Operations
01/12/2021,Disc Cycle,Equipment,5204,60907,Other Vehicle Costs,809.99,,Operations
01/12/2021,Disc Cycle,Equipment,5204,60907,Other Vehicle Costs,478.47,,Operations
01/12/2021,Disc Cycle,Equipment,5204,60907,Other Vehicle Costs,699.93,,Operations
01/12/2021,DVLA,Vehicle Excise Duty,5204,60907,Other Vehicle Costs,277.50,,Operations
27/11/2021,Dropbox,External File Storage,4010,62005,"Advertising, Publicity & Marketing",9.99,,One Leisure
28/11/2021,iStock,Image Library Supply,4010,62005,"Advertising, Publicity & Marketing",84.00,,One Leisure
07/11/2021,Zoom,Licence for Virtual Committee Meeetings,4130,64072,ICT Licence,191.90,,Corporate Office
19/11/2021,Amazon,Equipment,4130,61713,Equipment,42.07,,Corporate Office
06/11/2021,Amazon,Prime,4130,61713,Equipment,7.99,,Countryside Services
15/11/2021,Amazon,Prime,4130,61713,Equipment,-7.99,,Countryside Services
10/11/2021,Miro,Research collaboration tool,4148,64071,ICT Software,76.83,,Transformation
04/11/2021,Screwfix,Equipment,5288,61709,Materials,109.99,,Facilities Management
08/11/2021,Amazon,Equipment,5288,61709,Materials,47.98,,Facilities Management
11/11/2021,Timpson,Equipment,5288,61709,Materials,34.50,,Facilities Management
11/11/2021,Screwfix,Equipment,5288,61709,Materials,259.98,,Facilities Management
12/11/2021,Amazon,Equipment,5288,61709,Materials,20.10,,Facilities Management
15/11/2021,Digital ID,Equipment,5288,61709,Materials,314.28,,Facilities Management
15/11/2021,Digital ID,Equipment,5288,61709,Materials,449.82,,Facilities Management
18/11/2021,Amazon,Equipment,5288,61709,Materials,225.98,,Facilities Management
23/11/2021,Screwfix,Equipment,5288,61709,Materials,81.76,,Facilities Management
29/11/2021,Screwfix,Equipment,5288,61709,Materials,61.87,,Facilities Management
01/12/2021,Amazon,Equipment,5288,61709,Materials,21.99,,Facilities Management
01/12/2021,Amazon,Equipment,5288,61709,Materials,41.98,,Facilities Management
01/12/2021,Swim England,Training,4075,61709,Materials,375.00,,One Leisure
15/12/2021,Egoditor GmbH,QR Codes,4096,62005,"Advertising, Publicity & Marketing",132.07,,Active Leisure
03/01/2022,Facebook,Course advert,4097,62005,"Advertising, Publicity & Marketing",10.00,,Active Leisure
15/12/2021,Trainline.com,Client Transport,4440,60913,Public Transport for Clients,15.26,,Housing
17/12/2021,Trainline.com,Client Transport,4440,60913,Public Transport for Clients,7.22,,Housing
20/12/2021,Trainline.com,Partial Refund Client Transport,4440,60913,Public Transport for Clients,-4.70,,Housing
22/12/2021,Trainline.com,Partial Refund Client Transport,4440,60913,Public Transport for Clients,-2.80,,Housing
10/12/2021,Tesco,Petrol,4075,61713,Equipment,17.38,,One Leisure
15/12/2021,Amazon,Music cables,4075,61713,Equipment,13.98,,One Leisure
22/12/2021,Amazon,Hard Cases for Samsung tablets ,4075,61713,Equipment,127.81,,One Leisure
03/12/2021,Digicert,Certificate renewal for *.cambridge.gov.uk,5286,64071,ICT Software,614.25,,ICT
08/12/2021,Amazon,Bottled Water (EFH),5288,61709,Materials,20.99,,Facilities Management
14/12/2021,Amazon,Bathroom Door Locks (HBS),5288,61709,Materials,41.97,,Facilities Management
20/12/2021,Amazon,Cordless Screwdriver,5288,61709,Materials,62.73,,Facilities Management
20/12/2021,Screwfix,Tools,5288,61709,Materials,59.98,,Facilities Management
20/12/2021,Amazon,Sack Barrow/Truck,5288,61709,Materials,124.00,,Facilities Management
07/12/2021,SAMSUNG ELECTRONICS UK   Chertsey,Tablets for One Leisure sites,4021,61713,Equipment,183.60,,One Leisure
07/12/2021,SAMSUNG ELECTRONICS UK   Chertsey,Tablets for One Leisure sites,4021,61713,Equipment,183.60,,One Leisure
07/12/2021,SAMSUNG ELECTRONICS UK   Chertsey,Tablets for One Leisure sites,4055,61713,Equipment,183.60,,One Leisure
07/12/2021,SAMSUNG ELECTRONICS UK   Chertsey,Tablets for One Leisure sites,4055,61713,Equipment,183.60,,One Leisure
07/12/2021,SAMSUNG ELECTRONICS UK   Chertsey,Tablets for One Leisure sites,4075,61713,Equipment,183.60,,One Leisure
08/12/2021,Mailchimp,Bulk emails,4135,64100,Postage & Courier Services,72.33,,Corporate Office
13/12/2021,Mailchimp,Bulk emails,4130,64100,Postage & Courier Services,495.78,,Corporate Office
21/12/2021,Local Government Association,"LGA Annual Conference 2022 - 3 x tickets for MD, Exec Leader, Deputy Leader",4145,64300,Conference Expenses,"1,782.00",,Corporate Office
22/12/2021,High St Vouchers,thank you vouchers for Mental Health First Aiders,5220,60124,Team Rewards,250.00,,Corporate Office
22/12/2021,High St Vouchers,Thank you vouchers for Mental Health First Aiders,5220,60124,Team Rewards,200.00,,Corporate Office
22/12/2021,High St Vouchers,Thank you vouchers for Mental Health First Aiders,5220,60124,Team Rewards,250.00,,Corporate Office
22/12/2021,High St Vouchers,Thank you vouchers for Mental Health First Aiders,5220,60124,Team Rewards,250.00,,Corporate Office
09/12/2021,Gloves.co.uk,Gloves for PPE,4021,61713,Equipment,32.84,,One Leisure
09/12/2021,Screwfix,RPE masks ,4021,61713,Equipment,118.84,,One Leisure
06/12/2021,BIDFOOD - SOUTHLINCS OC INV ,SOUTHLINCS OC INV ,4057,61900,Catering Supplies,123.17,,One Leisure
13/12/2021,AMAZON,Jura X Line Cleaner - Ally Burg Bar,4049,61709,Materials,26.49,,One Leisure
20/12/2021,POST OFFICE COUNTER,STAMPS 2nd class 12 @ 2,4055,64100,Postage & Courier Services,15.84,,One Leisure
05/12/2021,Microsoft,Azure,5286,64071,ICT Software,28.48,,ICT
09/12/2021,Paddle,EasyRetro,5222,64071,ICT Software,60.00,,ICT
09/12/2021,Atlassian,JIRA Subscription,5286,64071,ICT Software,443.49,,ICT
10/12/2021,Tamar Telecoms,Port numbers for SCDC,5253,64077,Land Line Rental,209.86,,ICT
10/12/2021,Tamar Telecoms,0300 number for BldgCont,5222,64077,Land Line Rental,17.99,,ICT
13/12/2021,J2 eFax,Fax-to-email software,5222,64071,ICT Software,19.20,,ICT
14/12/2021,AutoSPF,Email,5286,64071,ICT Software,9.37,,ICT
15/12/2021,1&1,Domain Names 3css.org,5286,64900,Registration Fee,19.32,,ICT
22/12/2021,Postman,Digital Team,5286,64071,ICT Software,128.32,,ICT
23/12/2021,MailChimp,MailChimp Subscription,5227,64071,ICT Software,15.22,,ICT
23/12/2021,MailChimp,Mandrill Auto Email,5222,64071,ICT Software,66.97,,ICT
27/12/2021,Google,Map searches for HDC,5229,64071,ICT Software,32.64,,ICT
02/01/2022,Google,City Google Map Searches,5222,64071,ICT Software,376.98,,ICT
01/01/2022,Zoom,Meeting Software for SCDC,5223,64072,ICT Licence,639.84,,ICT
11/12/2021,First Aid 4 Less,First Aid Equipment,4032,61713,Equipment,20.76,,One Leisure
03/12/2021,Ebay,Equipment,4072,61713,Equipment,7.62,,One Leisure
03/12/2021,Ebay,Equipment,4072,61713,Equipment,8.98,,One Leisure
05/12/2021,Amazon,Equipment,4072,61713,Equipment,10.98,,One Leisure
07/12/2021,Amazon,Equipment,4072,61713,Equipment,"1,281.94",,One Leisure
10/12/2021,Adobe,Marketing,4010,62005,"Advertising, Publicity & Marketing",41.62,,One Leisure
10/12/2021,Keepersport,Equipment,4072,61713,Equipment,300.59,,One Leisure
12/12/2021,Teamdirect,Equipment,4072,61713,Equipment,46.80,,One Leisure
13/12/2021,Prodirect soccer,Equipment,4072,61713,Equipment,-209.60,,One Leisure
14/12/2021,Keepersport,Equipment,4072,61713,Equipment,-300.59,,One Leisure
22/12/2021,Adobe,Marketing,4010,62005,"Advertising, Publicity & Marketing",41.62,,One Leisure
17/12/2021,AO Retail,Equipment,4440,61713,Equipment,334.00,,Housing
17/12/2021,AO Retail,Equipment,4440,61713,Equipment,249.00,,Housing
17/12/2021,Dunelm,Equipment,4440,61713,Equipment,101.78,,Housing
17/12/2021,Dunelm,Equipment,4440,61713,Equipment,47.00,,Housing
17/12/2021,Dunelm,Equipment,4440,61713,Equipment,-12.00,,Housing
03/12/2021,Westminster Forum Proj,Equipment,5370,61713,Equipment,252.00,,Operations
08/12/2021,Amazon,Equipment,5370,61713,Equipment,9.90,,Operations
08/12/2021,Amazon,Equipment,5370,61713,Equipment,9.90,,Operations
08/12/2021,Lil London,Equipment,5370,61713,Equipment,20.40,,Operations
10/12/2021,Amazon,Equipment,5370,61713,Equipment,50.00,,Operations
13/12/2021,Selkentmedi,Equipment,5370,61713,Equipment,240.36,,Operations
13/12/2021,Amazon,Equipment,5370,61713,Equipment,15.05,,Operations
13/12/2021,X X,Equipment,5370,61713,Equipment,2.10,,Operations
14/12/2021,Screwfix,Equipment,5370,61713,Equipment,34.99,,Operations
21/12/2021,George Hotel,Equipment,5370,61713,Equipment,139.98,,Operations
23/12/2021,Amazon,Equipment,5370,61713,Equipment,21.93,,Operations
24/12/2021,Rapid Racking,Equipment,5370,61713,Equipment,449.20,,Operations
24/12/2021,Rapid Racking,Equipment,5370,61713,Equipment,500.00,,Operations
07/12/2021,Digicert,Equipment,5224,64070,ICT Hardware,"1,417.15",,ICT
03/12/2021,RubyLemon,Equipment,5210,60115,Staff Training & Development,711.00,,Human Resources
14/12/2021,Mental Health First Aid,Equipment,5210,60115,Staff Training & Development,236.08,,Human Resources
15/12/2021,One Leisure,Equipment,5210,60115,Staff Training & Development,45.00,,Human Resources
09/12/2021,DVLA,Vehicle Excise Duty,5204,60907,Other Vehicle Costs,202.50,,Operations
09/12/2021,DVLA,Vehicle Excise Duty,5204,60907,Other Vehicle Costs,302.50,,Operations
09/12/2021,DVLA,Vehicle Excise Duty,5204,60907,Other Vehicle Costs,302.50,,Operations
09/12/2021,DVLA,Vehicle Excise Duty,5204,60907,Other Vehicle Costs,302.50,,Operations
09/12/2021,DVLA,Vehicle Excise Duty,5204,60907,Other Vehicle Costs,277.50,,Operations
09/12/2021,DVLA,Vehicle Excise Duty,5204,60907,Other Vehicle Costs,277.50,,Operations
09/12/2021,DVLA,Vehicle Excise Duty,5204,60907,Other Vehicle Costs,277.50,,Operations
09/12/2021,DVLA,Vehicle Excise Duty,5204,60907,Other Vehicle Costs,277.50,,Operations
09/12/2021,DVLA,Vehicle Excise Duty,5204,60907,Other Vehicle Costs,277.50,,Operations
09/12/2021,DVLA,Vehicle Excise Duty,5204,60907,Other Vehicle Costs,277.50,,Operations
09/12/2021,DVLA,Vehicle Excise Duty,5204,60907,Other Vehicle Costs,277.50,,Operations
09/12/2021,DVLA,Vehicle Excise Duty,5204,60907,Other Vehicle Costs,302.50,,Operations
09/12/2021,DVLA,Vehicle Excise Duty,5204,60907,Other Vehicle Costs,277.50,,Operations
09/12/2021,DVLA,Vehicle Excise Duty,5204,60907,Other Vehicle Costs,277.50,,Operations
09/12/2021,DVLA,Vehicle Excise Duty,5204,60907,Other Vehicle Costs,277.50,,Operations
21/12/2021,DVLA,Vehicle Excise Duty,5204,60907,Other Vehicle Costs,277.50,,Operations
31/12/2021,DVLA,Vehicle Excise Duty,5204,60907,Other Vehicle Costs,277.50,,Operations
31/12/2021,DVLA,Vehicle Excise Duty,5204,60907,Other Vehicle Costs,277.50,,Operations
31/12/2021,DVLA,Vehicle Excise Duty,5204,60907,Other Vehicle Costs,277.50,,Operations
31/12/2021,DVLA,Vehicle Excise Duty,5204,60907,Other Vehicle Costs,167.50,,Operations
31/12/2021,DVLA,Vehicle Excise Duty,5204,60907,Other Vehicle Costs,277.50,,Operations
31/12/2021,DVLA,Vehicle Excise Duty,5204,60907,Other Vehicle Costs,107.50,,Operations
31/12/2021,DVLA,Vehicle Excise Duty,5204,60907,Other Vehicle Costs,277.50,,Operations
31/12/2021,DVLA,Vehicle Excise Duty,5204,60907,Other Vehicle Costs,277.50,,Operations
07/12/2021,Zoom,Licence for Virtual Committee Meeetings,4130,64072,ICT Licence,191.90,,Corporate Office
07/12/2021,Twillo,Voice bots service,4151,64071,ICT Software,10.00,,Transformation
10/12/2021,Miro,Research collaboration tool,4148,64071,ICT Software,78.08,,Transformation
06/12/2021,Amazon,Equipment,4118,62900,Events,13.98,,Countryside Services
06/12/2021,Amazon,Equipment,4118,62900,Events,17.99,,Countryside Services
06/12/2021,Amazon,Equipment,4118,62900,Events,11.99,,Countryside Services
07/12/2021,Amazon,Equipment,4118,62900,Events,301.39,,Countryside Services
08/12/2021,Amazon,Equipment,4118,62900,Events,63.20,,Countryside Services
08/12/2021,Amazon,Equipment,4118,62900,Events,19.99,,Countryside Services
09/12/2021,Amazon,Equipment,4118,62900,Events,53.97,,Countryside Services
10/12/2021,Amazon,Equipment,4118,62900,Events,7.59,,Countryside Services
09/12/2021,Amazon,Equipment,4118,62900,Events,17.99,,Countryside Services
12/12/2021,Amazon,Equipment,4118,62900,Events,13.98,,Countryside Services
12/12/2021,Amazon,Equipment,4118,62900,Events,59.98,,Countryside Services
13/12/2021,Amazon,Equipment,4118,62900,Events,26.99,,Countryside Services
13/12/2021,Amazon,Equipment,4118,62900,Events,9.99,,Countryside Services
14/12/2021,Amazon,Equipment,4118,62900,Events,12.99,,Countryside Services
14/12/2021,Amazon,Equipment,4118,62900,Events,29.99,,Countryside Services
16/12/2021,Amazon,Equipment,4118,62900,Events,10.99,,Countryside Services
17/12/2021,Water Fitness,Equipment,4053,61713,,210.00,,One Leisure
